Workbook

Sheet Sheet1
B1: UNITED BROTHERS
B2: CONSIGNMENT STOCKIST OF GAIL (INDIA) LTD
B3: 301,HERITAGE PLAZA, R.S.MAHARAJ MARG,( TELI GALLI CROSS LANE), ANDHERI (E), MUMBAI - 400 069
B4: TEL: 26844612(4 LINES) FAX: 26822914 E-MAIL:,info@unibrothers.com , prashant@unibrothers.com , jyoti@unibrothers.com
B5: EX-WORKS PRICE OF HDPE "G-LEX / G-LENE " W.E.F. 20TH MARCH 2014
C7: Freight | E7: 2048.77 | H7: Freight | J7: 2061.17 | M7: Freight | O7: 2537.23 | R7: Freight | T7: 1959.23 | W7: Freight | Y7: 1624.98 | AB7: Freight | AD7: 2247.23 | AG7: Freight 2833.73
C8: DAMAN | H8: SILVASSA | M8: MUMBAI/BHIWANDI/THANE | R8: JALGAON | W8: NAGPUR | AB8: AURANGABAD | AG8: SOLAPUR
C9: BASIC | D9: DISC | E9: LOC | F9: EXCISE | G9: EX-WKS | H9: BASIC | I9: DISC | J9: LOC | K9: EXCISE | L9: EX-WKS | M9: BASIC | N9: DISC | O9: LOC | P9: EXCISE | Q9: EX-WKS | R9: BASIC | S9: DISC | T9: LOC | U9: EXCISE | V9: EX-WKS | W9: BASIC | X9: DISC | Y9: LOC | Z9: EXCISE | AA9: EX-WKS | AB9: BASIC | AC9: DISC | AE9: EXCISE | AF9: EX-WKS | AG9: BASIC | AH9: DISC | AJ9: EXCISE | AK9: EX-WKS
B10: BM
B11: B52A003A | C11: 107900 | D11: 1000 | E11: 2349.41 | F11: =(C11-D11-E11)*12.36% -> 12922.45292 | G11: =C11-D11-E11+F11 -> 117473.0429 | H11: 107900 | I11: 1000 | J11: 2349.41 | K11: =(H11-I11-J11)*12.36% -> 12922.45292 | L11: =H11-I11-J11+K11 -> 117473.0429 | M11: 107260 | N11: 1000 | O11: 2335.34 | P11: =(M11-N11-O11)*12.36% -> 12845.08798 | Q11: =M11-N11-O11+P11 -> 116769.748 | R11: 108290 | S11: 1000 | T11: 2357.98 | U11: =(R11-S11-T11)*12.36% -> 12969.59767 | V11: =R11-S11-T11+U11 -> 117901.6177 | W11: 109340 | X11: 1000 | Y11: 2381.05 | Z11: =(W11-X11-Y11)*12.36% -> 13096.52622 | AA11: =W11-X11-Y11+Z11 -> 119055.4762 | AB11: 107910 | AC11: 1000 | AD11: 2349.63 | AE11: =(AB11-AC11-AD11)*12.36% -> 12923.66173 | AF11: =AB11-AC11-AD11+AE11 -> 117484.0317 | AG11: 107280 | AH11: 1000 | AI11: 2335.78 | AJ11: =(AG11-AH11-AI11)*12.36% -> 12847.50559 | AK11: =AG11-AH11-AI11+AJ11 -> 116791.7256
B12: B63A003A | C12: 107900 | D12: 1000 | E12: 2349.41 | F12: =(C12-D12-E12)*12.36% -> 12922.45292 | G12: =C12-D12-E12+F12 -> 117473.0429 | H12: 107900 | I12: 1000 | J12: 2349.41 | K12: =(H12-I12-J12)*12.36% -> 12922.45292 | L12: =H12-I12-J12+K12 -> 117473.0429 | M12: 107260 | N12: 1000 | O12: 2335.34 | P12: =(M12-N12-O12)*12.36% -> 12845.08798 | Q12: =M12-N12-O12+P12 -> 116769.748 | R12: 108290 | S12: 1000 | T12: 2357.98 | U12: =(R12-S12-T12)*12.36% -> 12969.59767 | V12: =R12-S12-T12+U12 -> 117901.6177 | W12: 109340 | X12: 1000 | Y12: 2381.05 | Z12: =(W12-X12-Y12)*12.36% -> 13096.52622 | AA12: =W12-X12-Y12+Z12 -> 119055.4762 | AB12: 107910 | AC12: 1000 | AD12: 2349.63 | AE12: =(AB12-AC12-AD12)*12.36% -> 12923.66173 | AF12: =AB12-AC12-AD12+AE12 -> 117484.0317 | AG12: 107280 | AH12: 1000 | AI12: 2335.78 | AJ12: =(AG12-AH12-AI12)*12.36% -> 12847.50559 | AK12: =AG12-AH12-AI12+AJ12 -> 116791.7256
B13: B55HM0003A | C13: 111850 | D13: 1000 | E13: 2436.22 | F13: =(C13-D13-E13)*12.36% -> 13399.94321 | G13: =C13-D13-E13+F13 -> 121813.7232 | H13: 111860 | I13: 1000 | J13: 2436.44 | K13: =(H13-I13-J13)*12.36% -> 13401.15202 | L13: =H13-I13-J13+K13 -> 121824.712 | M13: 111270 | N13: 1000 | O13: 2423.47 | P13: =(M13-N13-O13)*12.36% -> 13329.83111 | Q13: =M13-N13-O13+P13 -> 121176.3611 | R13: 112300 | S13: 1000 | T13: 2446.11 | U13: =(R13-S13-T13)*12.36% -> 13454.3408 | V13: =R13-S13-T13+U13 -> 122308.2308 | W13: 113440 | X13: 1000 | Y13: 2471.16 | Z13: =(W13-X13-Y13)*12.36% -> 13592.14862 | AA13: =W13-X13-Y13+Z13 -> 123560.9886 | AB13: 111910 | AC13: 1000 | AD13: 2437.54 | AE13: =(AB13-AC13-AD13)*12.36% -> 13407.19606 | AF13: =AB13-AC13-AD13+AE13 -> 121879.6561 | AG13: 111390 | AH13: 1000 | AI13: 2426.11 | AJ13: =(AG13-AH13-AI13)*12.36% -> 13344.3368 | AK13: =AG13-AH13-AI13+AJ13 -> 121308.2268
B14: B53EA0035A | C14: 108400 | D14: 1000 | E14: 2360.4 | F14: =(C14-D14-E14)*12.36% -> 12982.89456 | G14: =C14-D14-E14+F14 -> 118022.4946 | H14: 108400 | I14: 1000 | J14: 2360.4 | K14: =(H14-I14-J14)*12.36% -> 12982.89456 | L14: =H14-I14-J14+K14 -> 118022.4946
B15: CABLE-INSUL
B16: C43D006A | C16: 105855 | D16: 1000 | E16: 2304.46 | F16: =(C16-D16-E16)*12.36% -> 12675.24674 | G16: =C16-D16-E16+F16 -> 115225.7867 | H16: 105855 | I16: 1000 | J16: 2304.46 | K16: =(H16-I16-J16)*12.36% -> 12675.24674 | L16: =H16-I16-J16+K16 -> 115225.7867 | M16: 105238 | N16: 1000 | O16: 2314.02 | P16: =(M16-N16-O16)*12.36% -> 12597.80393 | Q16: =M16-N16-O16+P16 -> 114521.7839 | R16: 106273 | S16: 1000 | T16: 2313.65 | U16: =(R16-S16-T16)*12.36% -> 12725.77566 | V16: =R16-S16-T16+U16 -> 115685.1257 | W16: 107366 | X16: 1000 | Y16: 2337.66 | Z16: =(W16-X16-Y16)*12.36% -> 12857.90282 | AA16: =W16-X16-Y16+Z16 -> 116886.2428 | AB16: 105922 | AC16: 1000 | AD16: 2305.92 | AE16: =(AB16-AC16-AD16)*12.36% -> 12683.34749 | AF16: =AB16-AC16-AD16+AE16 -> 115299.4275 | AG16: 105314 | AH16: 1000 | AI16: 2292.56 | AJ16: =(AG16-AH16-AI16)*12.36% -> 12609.84998 | AK16: =AG16-AH16-AI16+AJ16 -> 114631.29
B18: SHETG
B19: E45A003A | C19: 106950 | D19: 1000 | E19: 2328.53 | F19: =(C19-D19-E19)*12.36% -> 12807.61369 | G19: =C19-D19-E19+F19 -> 116429.0837 | H19: 106950 | I19: 1000 | J19: 2328.53 | K19: =(H19-I19-J19)*12.36% -> 12807.61369 | L19: =H19-I19-J19+K19 -> 116429.0837 | M19: 106290 | N19: 1000 | O19: 2328.75 | P19: =(M19-N19-O19)*12.36% -> 12726.0105 | Q19: =M19-N19-O19+P19 -> 115687.2605 | R19: 107390 | S19: 1000 | T19: 2338.2 | U19: =(R19-S19-T19)*12.36% -> 12860.80248 | V19: =R19-S19-T19+U19 -> 116912.6025 | W19: 108530 | X19: 1000 | Y19: 2363.25 | Z19: =(W19-X19-Y19)*12.36% -> 12998.6103 | AA19: =W19-X19-Y19+Z19 -> 118165.3603 | AB19: 107020 | AC19: 1000 | AD19: 2330.07 | AE19: =(AB19-AC19-AD19)*12.36% -> 12816.07535 | AF19: =AB19-AC19-AD19+AE19 -> 116506.0053 | AG19: 106380 | AH19: 1000 | AI19: 2316 | AJ19: =(AG19-AH19-AI19)*12.36% -> 12738.7104 | AK19: =AG19-AH19-AI19+AJ19 -> 115802.7104
B20: E45A003OG
B21: EXTR
B22: E52A003A | C22: 108620 | D22: 1000 | E22: 2365.23 | F22: =(C22-D22-E22)*12.36% -> 13009.48957 | G22: =C22-D22-E22+F22 -> 118264.2596 | H22: 108620 | I22: 1000 | J22: 2365.23 | K22: =(H22-I22-J22)*12.36% -> 13009.48957 | L22: =H22-I22-J22+K22 -> 118264.2596 | M22: 107960 | N22: 1000 | O22: 2350.73 | P22: =(M22-N22-O22)*12.36% -> 12929.70577 | Q22: =M22-N22-O22+P22 -> 117538.9758 | R22: 109060 | S22: 1000 | T22: 2374.9 | U22: =(R22-S22-T22)*12.36% -> 13062.67836 | V22: =R22-S22-T22+U22 -> 118747.7784 | W22: 110200 | X22: 1000 | Y22: 2399.96 | Z22: =(W22-X22-Y22)*12.36% -> 13200.48494 | AA22: =W22-X22-Y22+Z22 -> 120000.5249 | AB22: 108680 | AC22: 1000 | AD22: 2366.55 | AE22: =(AB22-AC22-AD22)*12.36% -> 13016.74242 | AF22: =AB22-AC22-AD22+AE22 -> 118330.1924 | AG22: 108050 | AH22: 1000 | AI22: 2352.7 | AJ22: =(AG22-AH22-AI22)*12.36% -> 12940.58628 | AK22: =AG22-AH22-AI22+AJ22 -> 117637.8863
B23: E52A003OG
B24: E52U003A | C24: 112400 | D24: 1000 | E24: 2393.36 | F24: =(C24-D24-E24)*12.36% -> 13473.2207 | G24: =C24-D24-E24+F24 -> 122479.8607 | H24: 112400 | I24: 1000 | J24: 2393.36 | K24: =(H24-I24-J24)*12.36% -> 13473.2207 | L24: =H24-I24-J24+K24 -> 122479.8607 | M24: 111740 | N24: 1000 | O24: 2378.86 | P24: =(M24-N24-O24)*12.36% -> 13393.4369 | Q24: =M24-N24-O24+P24 -> 121754.5769 | R24: 112840 | S24: 1000 | T24: 2403.03 | U24: =(R24-S24-T24)*12.36% -> 13526.40949 | V24: =R24-S24-T24+U24 -> 122963.3795 | W24: 113980 | X24: 1000 | Y24: 2428.09 | Z24: =(W24-X24-Y24)*12.36% -> 13664.21608 | AA24: =W24-X24-Y24+Z24 -> 124216.1261 | AB24: 112460 | AC24: 1000 | AD24: 2394.68 | AE24: =(AB24-AC24-AD24)*12.36% -> 13480.47355 | AF24: =AB24-AC24-AD24+AE24 -> 122545.7936 | AG24: 111830 | AH24: 1000 | AI24: 2380.84 | AJ24: =(AG24-AH24-AI24)*12.36% -> 13404.31618 | AK24: =AG24-AH24-AI24+AJ24 -> 121853.4762
B25: E52U003OG
B26: HM FILM
B27: F55HM0003A | C27: 107400 | D27: 1000 | E27: 2338.42 | F27: =(C27-D27-E27)*12.36% -> 12862.01129 | G27: =C27-D27-E27+F27 -> 116923.5913 | H27: 107910 | I27: 1000 | J27: 2349.63 | K27: =(H27-I27-J27)*12.36% -> 12923.66173 | L27: =H27-I27-J27+K27 -> 117484.0317 | M27: 107320 | N27: 1000 | O27: 2336.66 | P27: =(M27-N27-O27)*12.36% -> 12852.34082 | Q27: =M27-N27-O27+P27 -> 116835.6808 | R27: 108350 | S27: 1000 | T27: 2359.3 | U27: =(R27-S27-T27)*12.36% -> 12976.85052 | V27: =R27-S27-T27+U27 -> 117967.5505 | W27: 109490 | X27: 1000 | Y27: 2384.35 | Z27: =(W27-X27-Y27)*12.36% -> 13114.65834 | AA27: =W27-X27-Y27+Z27 -> 119220.3083 | AB27: 107960 | AC27: 1000 | AD27: 2350.73 | AE27: =(AB27-AC27-AD27)*12.36% -> 12929.70577 | AF27: =AB27-AC27-AD27+AE27 -> 117538.9758 | AG27: 107440 | AH27: 1000 | AI27: 2339.3 | AJ27: =(AG27-AH27-AI27)*12.36% -> 12866.84652 | AK27: =AG27-AH27-AI27+AJ27 -> 116967.5465
B28: F55HM0003OG
B29: IM HIGH
B30: I50A180A | C30: 104220 | D30: 1000 | E30: 2268.53 | F30: =(C30-D30-E30)*12.36% -> 12477.60169 | G30: =C30-D30-E30+F30 -> 113429.0717 | H30: 104230 | I30: 1000 | J30: 2268.75 | K30: =(H30-I30-J30)*12.36% -> 12478.8105 | L30: =H30-I30-J30+K30 -> 113440.0605 | M30: 103700 | N30: 1000 | O30: 2257.1 | P30: =(M30-N30-O30)*12.36% -> 12414.74244 | Q30: =M30-N30-O30+P30 -> 112857.6424 | R30: 104660 | S30: 1000 | T30: 2278.2 | U30: =(R30-S30-T30)*12.36% -> 12530.79048 | V30: =R30-S30-T30+U30 -> 113912.5905 | W30: 105770 | X30: 1000 | Y30: 2302.59 | Z30: =(W30-X30-Y30)*12.36% -> 12664.97188 | AA30: =W30-X30-Y30+Z30 -> 115132.3819 | AB30: 104300 | AC30: 1000 | AD30: 2270.29 | AE30: =(AB30-AC30-AD30)*12.36% -> 12487.27216 | AF30: =AB30-AC30-AD30+AE30 -> 113516.9822 | AG30: 103840 | AH30: 1000 | AI30: 2260.18 | AJ30: =(AG30-AH30-AI30)*12.36% -> 12431.66575 | AK30: =AG30-AH30-AI30+AJ30 -> 113011.4858
B31: I50A180OG
B32: IM LOW
B33: I60A080A | C33: 105590 | D33: 1000 | E33: 2298.64 | F33: =(C33-D33-E33)*12.36% -> 12643.2121 | G33: =C33-D33-E33+F33 -> 114934.5721 | H33: 105590 | I33: 1000 | J33: 2298.64 | K33: =(H33-I33-J33)*12.36% -> 12643.2121 | L33: =H33-I33-J33+K33 -> 114934.5721 | M33: 104940 | N33: 1000 | O33: 2284.35 | P33: =(M33-N33-O33)*12.36% -> 12564.63834 | Q33: =M33-N33-O33+P33 -> 114220.2883 | R33: 106030 | S33: 1000 | T33: 2308.31 | U33: =(R33-S33-T33)*12.36% -> 12696.40088 | V33: =R33-S33-T33+U33 -> 115418.0909 | W33: 107180 | X33: 1000 | Y33: 2333.58 | Z33: =(W33-X33-Y33)*12.36% -> 12835.41751 | AA33: =W33-X33-Y33+Z33 -> 116681.8375 | AB33: 105660 | AC33: 1000 | AD33: 2300.18 | AE33: =(AB33-AC33-AD33)*12.36% -> 12651.67375 | AF33: =AB33-AC33-AD33+AE33 -> 115011.4938 | AG33: 105020 | AH33: 1000 | AI33: 2286.11 | AJ33: =(AG33-AH33-AI33)*12.36% -> 12574.3088 | AK33: =AG33-AH33-AI33+AJ33 -> 114308.1988
B34: I60A080OG
B35: IM-L-UV
B36: I60U080A | C36: 107130 | D36: 1000 | E36: 2332.48 | F36: =(C36-D36-E36)*12.36% -> 12829.37347 | G36: =C36-D36-E36+F36 -> 116626.8935 | H36: 107130 | I36: 1000 | J36: 2332.48 | K36: =(H36-I36-J36)*12.36% -> 12829.37347 | L36: =H36-I36-J36+K36 -> 116626.8935 | M36: 106470 | N36: 1000 | O36: 2317.98 | P36: =(M36-N36-O36)*12.36% -> 12749.58967 | Q36: =M36-N36-O36+P36 -> 115901.6097 | R36: 107570 | S36: 1000 | T36: 2342.15 | U36: =(R36-S36-T36)*12.36% -> 12882.56226 | V36: =R36-S36-T36+U36 -> 117110.4123 | W36: 108710 | X36: 1000 | Y36: 2367.21 | Z36: =(W36-X36-Y36)*12.36% -> 13020.36884 | AA36: =W36-X36-Y36+Z36 -> 118363.1588 | AB36: 107200 | AC36: 1000 | AD36: 2334.02 | AE36: =(AB36-AC36-AD36)*12.36% -> 12837.83513 | AF36: =AB36-AC36-AD36+AE36 -> 116703.8151 | AG36: 106560 | AH36: 1000 | AI36: 2319.96 | AJ36: =(AG36-AH36-AI36)*12.36% -> 12760.46894 | AK36: =AG36-AH36-AI36+AJ36 -> 116000.5089
B37: I60U080OG
B38: PIPE (PE80)
B39: P54A001A | C39: 114610 | D39: 1000 | E39: 2441.93 | F39: =(C39-D39-E39)*12.36% -> 13740.37345 | G39: =C39-D39-E39+F39 -> 124908.4435 | H39: 114620 | I39: 1000 | J39: 2442.15 | K39: =(H39-I39-J39)*12.36% -> 13741.58226 | L39: =H39-I39-J39+K39 -> 124919.4323 | M39: 114030 | N39: 1000 | O39: 2429.19 | P39: =(M39-N39-O39)*12.36% -> 13670.26012 | Q39: =M39-N39-O39+P39 -> 124271.0701 | R39: 115060 | S39: 1000 | T39: 2451.82 | U39: =(R39-S39-T39)*12.36% -> 13794.77105 | V39: =R39-S39-T39+U39 -> 125402.951 | W39: 116200 | X39: 1000 | Y39: 2476.88 | Z39: =(W39-X39-Y39)*12.36% -> 13932.57763 | AA39: =W39-X39-Y39+Z39 -> 126655.6976 | AB39: 114670 | AC39: 1000 | AD39: 2443.25 | AE39: =(AB39-AC39-AD39)*12.36% -> 13747.6263 | AF39: =AB39-AC39-AD39+AE39 -> 124974.3763 | AG39: 114150 | AH39: 1000 | AI39: 2431.82 | AJ39: =(AG39-AH39-AI39)*12.36% -> 13684.76705 | AK39: =AG39-AH39-AI39+AJ39 -> 124402.947
B40: PIPE (PE100)
B41: P52A003A | C41: 116610 | D41: 1000 | E41: 2485.89 | F41: =(C41-D41-E41)*12.36% -> 13982.14 | G41: =C41-D41-E41+F41 -> 127106.25 | H41: 116620 | I41: 1000 | J41: 2486.11 | K41: =(H41-I41-J41)*12.36% -> 13983.3488 | L41: =H41-I41-J41+K41 -> 127117.2388 | M41: 116030 | N41: 1000 | O41: 2473.14 | P41: =(M41-N41-O41)*12.36% -> 13912.0279 | Q41: =M41-N41-O41+P41 -> 126468.8879 | R41: 117060 | S41: 1000 | T41: 2495.78 | U41: =(R41-S41-T41)*12.36% -> 14036.53759 | V41: =R41-S41-T41+U41 -> 127600.7576 | W41: 118200 | X41: 1000 | Y41: 2520.83 | Z41: =(W41-X41-Y41)*12.36% -> 14174.34541 | AA41: =W41-X41-Y41+Z41 -> 128853.5154 | AB41: 116670 | AC41: 1000 | AD41: 2487.21 | AE41: =(AB41-AC41-AD41)*12.36% -> 13989.39284 | AF41: =AB41-AC41-AD41+AE41 -> 127172.1828 | AG41: 116150 | AH41: 1000 | AI41: 2475.78 | AJ41: =(AG41-AH41-AD41)*12.36% -> 13925.12084 | AK41: =AG41-AH41-AD41+AJ41 -> 126587.9108
B42: RAFFIA
B43: W50A009A | C43: 108720 | D43: 1000 | E43: 2279.52 | F43: =(C43-D43-E43)*12.36% -> 13032.44333 | G43: =C43-D43-E43+F43 -> 118472.9233 | H43: 108720 | I43: 1000 | J43: 2279.52 | K43: =(H43-I43-J43)*12.36% -> 13032.44333 | L43: =H43-I43-J43+K43 -> 118472.9233 | M43: 108060 | N43: 1000 | O43: 2265.01 | P43: =(M43-N43-O43)*12.36% -> 12952.66076 | Q43: =M43-N43-O43+P43 -> 117747.6508 | R43: 109160 | S43: 1000 | T43: 2289.19 | U43: =(R43-S43-T43)*12.36% -> 13085.63212 | V43: =R43-S43-T43+U43 -> 118956.4421 | W43: 110300 | X43: 1000 | Y43: 2314.24 | Z43: =(W43-X43-Y43)*12.36% -> 13223.43994 | AA43: =W43-X43-Y43+Z43 -> 120209.1999 | AB43: 108790 | AC43: 1000 | AD43: 2281.06 | AE43: =(AB43-AC43-AD43)*12.36% -> 13040.90498 | AF43: =AB43-AC43-AD43+AE43 -> 118549.845 | AG43: 108150 | AH43: 1000 | AI43: 2266.99 | AJ43: =(AG43-AH43-AI43)*12.36% -> 12963.54004 | AK43: =AG43-AH43-AI43+AJ43 -> 117846.55
B44: T50A010A | C44: 108720 | D44: 1000 | E44: 2279.52 | F44: =(C44-D44-E44)*12.36% -> 13032.44333 | G44: =C44-D44-E44+F44 -> 118472.9233 | H44: 108720 | I44: 1000 | J44: 2279.52 | K44: =(H44-I44-J44)*12.36% -> 13032.44333 | L44: =H44-I44-J44+K44 -> 118472.9233 | M44: 108060 | N44: 1000 | O44: 2265.01 | P44: =(M44-N44-O44)*12.36% -> 12952.66076 | Q44: =M44-N44-O44+P44 -> 117747.6508 | R44: 109160 | S44: 1000 | T44: 2289.19 | U44: =(R44-S44-T44)*12.36% -> 13085.63212 | V44: =R44-S44-T44+U44 -> 118956.4421 | W44: 110300 | X44: 1000 | Y44: 2314.24 | Z44: =(W44-X44-Y44)*12.36% -> 13223.43994 | AA44: =W44-X44-Y44+Z44 -> 120209.1999 | AB44: 108790 | AC44: 1000 | AD44: 2281.06 | AE44: =(AB44-AC44-AD44)*12.36% -> 13040.90498 | AF44: =AB44-AC44-AD44+AE44 -> 118549.845 | AG44: 108150 | AH44: 1000 | AI44: 2266.99 | AJ44: =(AG44-AH44-AI44)*12.36% -> 12963.54004 | AK44: =AG44-AH44-AI44+AJ44 -> 117846.55
B45: MF
B46: W52A009A | C46: 105220 | D46: 1000 | E46: 2290.51 | F46: =(C46-D46-E46)*12.36% -> 12598.48496 | G46: =C46-D46-E46+F46 -> 114527.975 | H46: 105220 | I46: 1000 | J46: 2290.51 | K46: =(H46-I46-J46)*12.36% -> 12598.48496 | L46: =H46-I46-J46+K46 -> 114527.975 | M46: 104560 | N46: 1000 | O46: 2276 | P46: =(M46-N46-O46)*12.36% -> 12518.7024 | Q46: =M46-N46-O46+P46 -> 113802.7024 | R46: 105660 | S46: 1000 | T46: 2300.18 | U46: =(R46-S46-T46)*12.36% -> 12651.67375 | V46: =R46-S46-T46+U46 -> 115011.4938 | W46: 106800 | X46: 1000 | Y46: 2325.23 | Z46: =(W46-X46-Y46)*12.36% -> 12789.48157 | AA46: =W46-X46-Y48+Z46 -> 116264.2516 | AB46: 105290 | AC46: 1000 | AD46: 2292.05 | AE46: =(AB46-AC46-AD46)*12.36% -> 12606.94662 | AF46: =AB46-AC46-AD48+AE46 -> 114604.8966 | AG46: 104650 | AH46: 1000 | AI46: 2277.98 | AJ46: =(AG46-AH46-AI46)*12.36% -> 12529.58167 | AK46: =AG46-AH46-AI46+AJ46 -> 113901.6017
B47: W52A009OG
B48: W52ASR009A | C48: 105220 | D48: 1000 | E48: 2290.51 | F48: =(C48-D48-E48)*12.36% -> 12598.48496 | G48: =C48-D48-E48+F48 -> 114527.975 | H48: 105220 | I48: 1000 | J48: 2290.51 | K48: =(H48-I48-J48)*12.36% -> 12598.48496 | L48: =H48-I48-J48+K48 -> 114527.975 | M48: 104560 | N48: 1000 | O48: 2276 | P48: =(M48-N48-O48)*12.36% -> 12518.7024 | Q48: =M48-N48-O48+P48 -> 113802.7024 | R48: 105660 | S48: 1000 | T48: 2300.18 | U48: =(R48-S48-T48)*12.36% -> 12651.67375 | V48: =R48-S48-T48+U48 -> 115011.4938 | W48: 106800 | X48: 1000 | Y48: 2325.23 | Z48: =(W48-X48-Y48)*12.36% -> 12789.48157 | AA48: =W48-X48-Y50+Z48 -> 118589.4816 | AB48: 105290 | AC48: 1000 | AD48: 2292.05 | AE48: =(AB48-AC48-AD48)*12.36% -> 12606.94662 | AF48: =AB48-AC48-AD50+AE48 -> 116896.9466 | AG48: 104650 | AH48: 1000 | AI48: 2277.98 | AJ48: =(AG48-AH48-AI48)*12.36% -> 12529.58167 | AK48: =AG48-AH48-AI48+AJ48 -> 113901.6017
B49: W55A004A | C49: 108220 | D49: 1000 | E49: 2356.44 | F49: =(C49-D49-E49)*12.36% -> 12961.13602 | G49: =C49-D49-E49+F49 -> 117824.696 | H49: 108220 | I49: 1000 | J49: 2356.44 | K49: =(H49-I49-J49)*12.36% -> 12961.13602 | L49: =H49-I49-J49+K49 -> 117824.696 | M49: 107560 | N49: 1000 | O49: 2341.93 | P49: =(M49-N49-O49)*12.36% -> 12881.35345 | Q49: =M49-N49-O49+P49 -> 117099.4235 | R49: 108660 | S49: 1000 | T49: 2366.11 | U49: =(R49-S49-T49)*12.36% -> 13014.3248 | V49: =R49-S49-T49+U49 -> 118308.2148 | W49: 109800 | X49: 1000 | Y49: 2391.16 | Z49: =(W49-X49-Y49)*12.36% -> 13152.13262 | AA49: =W49-X49-Y49+Z49 -> 119560.9726 | AB49: 108290 | AC49: 1000 | AD49: 2357.98 | AE49: =(AB49-AC49-AD49)*12.36% -> 12969.59767 | AF49: =AB49-AC49-AD51+AE49 -> 117928.8677 | AG49: 107650 | AH49: 1000 | AI49: 2343.91 | AJ49: =(AG49-AH49-AI49)*12.36% -> 12892.23272 | AK49: =AG49-AH49-AI49+AJ49 -> 117198.3227
B50: LLDPE
B51: E20AN009A | C51: 106980 | D51: 1000 | E51: 2329.19 | F51: =(C51-D51-E51)*12.36% -> 12811.24012 | G51: =C51-D51-E51+F51 -> 116462.0501 | H51: 106980 | I51: 1000 | J51: 2329.19 | K51: =(H51-I51-J51)*12.36% -> 12811.24012 | L51: =H51-I51-J51+K51 -> 116462.0501 | M51: 106330 | N51: 1000 | O51: 2314.9 | P51: =(M51-N51-O51)*12.36% -> 12732.66636 | Q51: =M51-N51-O51+P51 -> 115747.7664 | R51: 107420 | S51: 1000 | T51: 2338.86 | U51: =(R51-S51-T51)*12.36% -> 12864.4289 | V51: =R51-S51-T51+U51 -> 116945.5689 | W51: 108570 | X51: 1000 | Y51: 2364.13 | Z51: =(W51-X51-Y51)*12.36% -> 13003.44553 | AA51: =W51-X51-Y51+Z51 -> 118209.3155 | AB51: 107050 | AC51: 1000 | AD51: 2330.73 | AE51: =(AB51-AC51-AD51)*12.36% -> 12819.70177 | AF51: =AB51-AC51-AD51+AE51 -> 116538.9718 | AG51: 106410 | AH51: 1000 | AI51: 2316.66 | AJ51: =(AG51-AH51-AI51)*12.36% -> 12742.33682 | AK51: =AG51-AH51-AI51+AJ51 -> 115835.6768
B52: E20AN009OG
B53: E36A060A | C53: 111020 | D53: 1000 | E53: 2417.95 | F53: =(C53-D53-E53)*12.36% -> 13299.61338 | G53: =C53-D53-E53+F53 -> 120901.6634 | H53: 111020 | I53: 1000 | J53: 2417.98 | K53: =(H53-I53-J53)*12.36% -> 13299.60967 | L53: =H53-I53-J53+K53 -> 120901.6297 | M53: 110370 | N53: 1000 | O53: 2403.69 | P53: =(M53-N53-O53)*12.36% -> 13221.03592 | Q53: =M53-N53-O53+P53 -> 120187.3459 | R53: 111470 | S53: 1000 | T53: 2427.87 | U53: =(R53-S53-T53)*12.36% -> 13354.00727 | V53: =R53-S53-T53+U53 -> 121396.1373 | W53: 112610 | X53: 1000 | Y53: 2452.92 | Z53: =(W53-X53-Y53)*12.36% -> 13491.81509 | AA53: =W53-X53-Y53+Z53 -> 122648.8951 | AB53: 111090 | AC53: 1000 | AD53: 2419.52 | AE53: =(AB53-AC53-AD53)*12.36% -> 13308.07133 | AF53: =AB53-AC53-AD53+AE53 -> 120978.5513 | AG53: 110450 | AH53: 1000 | AI53: 2405.45 | AJ53: =(AG53-AH53-AI53)*12.36% -> 13230.70638 | AK53: =AG53-AH53-AI53+AJ53 -> 120275.2564
B54: E36A060OG
B55: FILM
B56: F20S009A | C56: 108480 | D56: 1000 | E56: 2362.15 | F56: =(C56-D56-E56)*12.36% -> 12992.56626 | G56: =C56-D56-E56+F56 -> 118110.4163 | H56: 108480 | I56: 1000 | J56: 2362.15 | K56: =(H56-I56-J56)*12.36% -> 12992.56626 | L56: =H56-I56-J56+K56 -> 118110.4163 | M56: 107830 | N56: 1000 | O56: 2347.87 | P56: =(M56-N56-O56)*12.36% -> 12913.99127 | Q56: =M56-N56-O56+P56 -> 117396.1213 | R56: 108920 | S56: 1000 | T56: 2371.82 | U56: =(R56-S56-T56)*12.36% -> 13045.75505 | V56: =R56-S56-T56+U56 -> 118593.935 | W56: 110070 | X56: 1000 | Y56: 2397.1 | Z56: =(W56-X56-Y56)*12.36% -> 13184.77044 | AA56: =W56-X56-Y56+Z56 -> 119857.6704 | AB56: 108550 | AC56: 1000 | AD56: 2363.69 | AE56: =(AB56-AC56-AD56)*12.36% -> 13001.02792 | AF56: =AB56-AC56-AD56+AE56 -> 118187.3379 | AG56: 107910 | AH56: 1000 | AI56: 2349.63 | AJ56: =(AG56-AH56-AI56)*12.36% -> 12923.66173 | AK56: =AG56-AH56-AI56+AJ56 -> 117484.0317
B57: F20S009OG
B58: D22S010A | C58: 107480 | D58: 1000 | E58: 2340.18 | F58: =(C58-D58-E58)*12.36% -> 12871.68175 | G58: =C58-D58-E58+F58 -> 117011.5018 | H58: 107480 | I58: 1000 | J58: 2340.18 | K58: =(H58-I58-J58)*12.36% -> 12871.68175 | L58: =H58-I58-J58+K58 -> 117011.5018 | M58: 106830 | N58: 1000 | O58: 2325.89 | P58: =(M58-N58-O58)*12.36% -> 12793.108 | Q58: =M58-N58-O58+P58 -> 116297.218 | R58: 107920 | S58: 1000 | T58: 2349.85 | U58: =(R58-S58-T58)*12.36% -> 12924.87054 | V58: =R58-S58-T58+U58 -> 117495.0205 | W58: 109070 | X58: 1000 | Y58: 2375.12 | Z58: =(W58-X58-Y58)*12.36% -> 13063.88717 | AA58: =W58-X58-Y58+Z58 -> 118758.7672 | AB58: 107550 | AC58: 1000 | AD58: 2341.71 | AE58: =(AB58-AC58-AD58)*12.36% -> 12880.14464 | AF58: =AB58-AC58-AD58+AE58 -> 117088.4346 | AG58: 106910 | AH58: 1000 | AI58: 2327.65 | AJ58: =(AG58-AH58-AI58)*12.36% -> 12802.77846 | AK58: =AG58-AH58-AI58+AJ58 -> 116385.1285
B59: ROTO
B60: R35A042A | C60: 108000 | D60: 1000 | E60: 2351.6 | F60: =(C60-D60-E60)*12.36% -> 12934.54224 | G60: =C60-D60-E60+F60 -> 117582.9422 | H60: 108010 | I60: 1000 | J60: 2351.82 | K60: =(H60-I60-J60)*12.36% -> 12935.75105 | L60: =H60-I60-J60+K60 -> 117593.931 | M60: 107420 | N60: 1000 | O60: 2338.86 | P60: =(M60-N60-O60)*12.36% -> 12864.4289 | Q60: =M60-N60-O60+P60 -> 116945.5689 | R60: 108450 | S60: 1000 | T60: 2361.49 | U60: =(R60-S60-T60)*12.36% -> 12988.93984 | V60: =R60-S60-T60+U60 -> 118077.4498 | W60: 109590 | X60: 1000 | Y60: 2386.55 | Z60: =(W60-X60-Y60)*12.36% -> 13126.74642 | AA60: =W60-X60-Y60+Z60 -> 119330.1964 | AB60: 108060 | AC60: 1000 | AD60: 2352.92 | AE60: =(AB60-AC60-AD60)*12.36% -> 12941.79509 | AF60: =AB60-AC60-AD60+AE60 -> 117648.8751 | AG60: 107540 | AH60: 1000 | AI60: 2341.5 | AJ60: =(AG60-AH60-AI60)*12.36% -> 12878.9346 | AK60: =AG60-AH60-AI60+AJ60 -> 117077.4346
B61: R35U042A | C61: 108860 | D61: 1000 | E61: 2370.51 | F61: =(C61-D61-E61)*12.36% -> 13038.50096 | G61: =C61-D61-E61+F61 -> 118527.991 | H61: 108870 | I61: 1000 | J61: 2370.73 | K61: =(H61-I61-J61)*12.36% -> 13039.70977 | L61: =H61-I61-J61+K61 -> 118538.9798 | M61: 108280 | N61: 1000 | O61: 2357.76 | P61: =(M61-N61-O61)*12.36% -> 12968.38886 | Q61: =M61-N61-O61+P61 -> 117890.6289 | R61: 109310 | S61: 1000 | T61: 2380.4 | U61: =(R61-S61-T61)*12.36% -> 13092.89856 | V61: =R61-S61-T61+U61 -> 119022.4986 | W61: 110450 | X61: 1000 | Y61: 2405.45 | Z61: =(W61-X61-Y61)*12.36% -> 13230.70638 | AA61: =W61-X61-Y61+Z61 -> 120275.2564 | AB61: 108920 | AC61: 1000 | AD61: 2371.82 | AE61: =(AB61-AC61-AD61)*12.36% -> 13045.75505 | AF61: =AB61-AC61-AD61+AE61 -> 118593.935 | AG61: 108400 | AH61: 1000 | AI61: 2360.4 | AJ61: =(AG61-AH61-AI61)*12.36% -> 12982.89456 | AK61: =AG61-AH61-AI61+AJ61 -> 118022.4946
AA62: .
B63: NOTE : | C63: NOTE : | D63: THE PRICES OF OLD PLANT & NEW PLANT ARE SAME FROM DIRECT SALE

Sheet Sheet2
A2: UNITED BROTHERS
A3: CONSIGNMENT STOCKIST OF GAIL (INDIA) LTD
A4: 301,HERITAGE PLAZA, R.S.MAHARAJ MARG,( TELI GALLI CROSS LANE), ANDHERI (E), MUMBAI - 400 069
A5: EL: 26844612(4 LINES) FAX: 26822914 E-MAIL: info@unibrothers.com, prashant@unibrothers.com,jyoti@unibrotehers.com
A6: EX-WORKS PRICE OF HDPE "G-LEX / G-LENE " W.E.F. 20TH MARCH 2014
A7: CASH / ADVANCE PAYMENT FOR MAHARASHTRA & DAMAN
B8: Freight | D8: 3069.18 | G8: Freight | I8: 2016.35 | L8: Freight | N8: 2640.33 | Q8: Freight | S8: 2825.33 | V8: Freight | X8: 2282.96 | AA8: Freight | AC8: 3163.78 | AF8: Freight 1986.51 | AG8: 2446.93 | AK8: FREIGHT | AL8: 2814.81
B9: SANGLI | G9: UMBERGAON | L9: PUNE | Q9: WAI | V9: NASIK | AA9: KOLHAPUR | AF9: AHMEDNAGAR | AK9: ROHA
B10: BASIC | C10: DISC | D10: LOC | E10: EXCISE | F10: EX-WKS | G10: BASIC | H10: DISC | I10: LOC | J10: EXCISE | K10: EX-WKS | L10: BASIC | M10: DISC | N10: LOC | O10: EXCISE | P10: EX-WKS | Q10: BASIC | R10: DISC | S10: LOC | T10: EXCISE | U10: EX-WKS | V10: BASIC | W10: DISC | X10: LOC | Y10: EXCISE | Z10: EX-WKS | AB10: DISC | AC10: LOC | AD10: EXCISE | AE10: EX-WKS | AF10: BASIC | AG10: DISC | AH10: LOC | AI10: EXCISE | AJ10: EX-WKS | AL10: DISC | AM10: LOC | AN10: EXCISE | AO10: EX-WKS
A11: BM
A12: B52A003A | B12: 107280 | C12: 1000 | D12: 2335.78 | E12: =(B12-C12-D12)*12.36% -> 12847.50559 | F12: =B12-C12-D12+E12 -> 116791.7256 | G12: 107720 | H12: 1000 | I12: 2345.45 | J12: =(G12-H12-I12)*12.36% -> 12900.69438 | K12: =G12-H12-I12+J12 -> 117275.2444 | L12: 107260 | M12: 1000 | N12: 2335.34 | O12: =(L12-M12-N12)*12.36% -> 12845.08798 | P12: =L12-M12-N12+O12 -> 116769.748 | Q12: 107260 | R12: 1000 | S12: 2335.34 | T12: =(Q12-R12-S12)*12.36% -> 12845.08798 | U12: =Q12-R12-S12+T12 -> 116769.748 | V12: 107690 | W12: 1000 | X12: 2344.79 | Y12: =(V12-W12-X12)*12.36% -> 12897.06796 | Z12: =V12-W12-X12+Y12 -> 117242.278 | AA12: 107110 | AB12: 1000 | AC12: 2332.04 | AD12: =(AA12-AB12-AC12)*12.36% -> 12826.95586 | AE12: =AA12-AB12-AC12+AD12 -> 116604.9159 | AF12: 107910 | AG12: 1000 | AH12: 2349.63 | AI12: =(AF13-AG12-AH12)*12.36% -> 12923.66173 | AJ12: =AF13-AG12-AH12+AI12 -> 117484.0317 | AK12: 107690 | AL12: 1000 | AM12: 2344.79 | AN12: =(AK12-AL12-AM12)*12.36% -> 12897.06796 | AO12: =AK12-AL12-AM12+AN12 -> 117242.278
A13: B63A003A | B13: 107280 | C13: 1000 | D13: 2335.78 | E13: =(B13-C13-D13)*12.36% -> 12847.50559 | F13: =B13-C13-D13+E13 -> 116791.7256 | G13: 107720 | H13: 1000 | I13: 2345.45 | J13: =(G13-H13-I13)*12.36% -> 12900.69438 | K13: =G13-H13-I13+J13 -> 117275.2444 | L13: 107260 | M13: 1000 | N13: 2335.34 | O13: =(L13-M13-N13)*12.36% -> 12845.08798 | P13: =L13-M13-N13+O13 -> 116769.748 | Q13: 107260 | R13: 1000 | S13: 2335.34 | T13: =(Q13-R13-S13)*12.36% -> 12845.08798 | U13: =Q13-R13-S13+T13 -> 116769.748 | V13: 107690 | W13: 1000 | X13: 2344.79 | Y13: =(V13-W13-X13)*12.36% -> 12897.06796 | Z13: =V13-W13-X13+Y13 -> 117242.278 | AA13: 107110 | AB13: 1000 | AC13: 2332.04 | AD13: =(AA13-AB13-AC13)*12.36% -> 12826.95586 | AE13: =AA13-AB13-AC13+AD13 -> 116604.9159 | AF13: 107910 | AG13: 1000 | AH13: 2349.63 | AI13: =(AF14-AG13-AH13)*12.36% -> 13418.06173 | AJ13: =AF14-AG13-AH13+AI13 -> 121978.4317 | AK13: 107690 | AL13: 1000 | AM13: 2344.79 | AN13: =(AK13-AL13-AM13)*12.36% -> 12897.06796 | AO13: =AK13-AL13-AM13+AN13 -> 117242.278
A14: B55HM0003A | B14: 111390 | C14: 1000 | D14: 2426.11 | E14: =(B14-C14-D14)*12.36% -> 13344.3368 | F14: =B14-C14-D14+E14 -> 121308.2268 | G14: 112090 | H14: 1000 | I14: 2441.49 | J14: =(G14-H14-I14)*12.36% -> 13428.95584 | K14: =G14-H14-I14+J14 -> 122077.4658 | L14: 111290 | M14: 1000 | N14: 2423.91 | O14: =(L14-M14-N14)*12.36% -> 13332.24872 | P14: =L14-M14-N14+O14 -> 121198.3387 | Q14: 111290 | R14: 1000 | S14: 2423.91 | T14: =(Q14-R14-S14)*12.36% -> 13332.24872 | U14: =Q14-R14-S14+T14 -> 121198.3387 | V14: 111640 | W14: 1000 | X14: 2431.6 | Y14: =(V14-W14-X14)*12.36% -> 13374.55824 | Z14: =V14-W14-X14+Y14 -> 121582.9582 | AA14: 111080 | AB14: 1000 | AC14: 2419.3 | AD14: =(AA14-AB14-AC14)*12.36% -> 13306.86252 | AE14: =AA14-AB14-AC14+AD14 -> 120967.5625 | AF14: 111910 | AG14: 1000 | AH14: 2437.54 | AI14: =(AF14-AG14-AH14)*12.36% -> 13407.19606 | AJ14: =AF14-AG14-AH14+AI14 -> 121879.6561 | AK14: 111640 | AL14: 1000 | AM14: 2431.6 | AN14: =(AK14-AL14-AM14)*12.36% -> 13374.55824 | AO14: =AK14-AL14-AM14+AN14 -> 121582.9582
A15: B53EA0035A | G15: 108220 | H15: 1000 | I15: 2356.44 | J15: =(G15-H15-I15)*12.36% -> 12961.13602 | K15: =G15-H15-I15+J15 -> 117824.696
A16: CABLE-INSUL
A17: C43D006A | B17: 105314 | C17: 1000 | D17: 2292.56 | E17: =(B17-C17-D17)*12.36% -> 12609.84998 | F17: =B17-C17-D17+E17 -> 114631.29 | G17: 105336 | H17: 1000 | I17: 2293.06 | J17: =(G17-H17-I17)*12.36% -> 12612.50738 | K17: =G17-H17-I17+J17 -> 114655.4474 | L17: 105285 | M17: 1000 | N17: 2291.94 | O17: =(L17-M17-N17)*12.36% -> 12606.34222 | P17: =L17-M17-N17+O17 -> 114599.4022 | Q17: 105285 | R17: 1000 | S17: 2291.94 | T17: =(Q17-R17-S17)*12.36% -> 12606.34222 | U17: =Q17-R17-S17+T17 -> 114599.4022 | V17: 105675 | W17: 1000 | X17: 2300.5 | Y17: =(V17-W17-X17)*12.36% -> 12653.4882 | Z17: =V17-W17-X17+Y17 -> 115027.9882 | AA17: 105124 | AB17: 1000 | AC17: 2288.39 | AD17: =(AA17-AB17-AC17)*12.36% -> 12586.8814 | AE17: =AA17-AB17-AC17+AD17 -> 114422.4914 | AF17: 105922 | AG17: 1000 | AH17: 2305.92 | AI17: =(AF17-AG17-AH17)*12.36% -> 12683.34749 | AJ17: =AF17-AG17-AH17+AI17 -> 115299.4275 | AK17: 105675 | AL17: 1000 | AM17: 2300.5 | AN17: =(AK17-AL17-AM17)*12.36% -> 12653.4882 | AO17: =AK17-AL17-AM17+AN17 -> 115027.9882
A19: SHETG
A20: E45A003A | B20: 106380 | C20: 1000 | D20: 2316 | E20: =(B20-C20-D20)*12.36% -> 12738.7104 | F20: =B20-C20-D20+E20 -> 115802.7104 | G20: 106580 | H20: 1000 | I20: 2320.4 | J20: =(G20-H20-I20)*12.36% -> 12762.88656 | K20: =G20-H20-I20+J20 -> 116022.4866 | L20: 106350 | M20: 1000 | N20: 2315.34 | O20: =(L20-M20-N20)*12.36% -> 12735.08398 | P20: =L20-M20-N20+O20 -> 115769.744 | Q20: 106350 | R20: 1000 | S20: 2315.34 | T20: =(Q20-R20-S20)*12.36% -> 12735.08398 | U20: =Q20-R20-S20+T20 -> 115769.744 | V20: 106750 | W20: 1000 | X20: 2324.13 | Y20: =(V20-W20-X20)*12.36% -> 12783.43753 | Z20: =V20-W20-X20+Y20 -> 116209.3075 | AA20: 106180 | AB20: 1000 | AC20: 2311.61 | AD20: =(AA20-AB20-AC20)*12.36% -> 12714.533 | AE20: =AA20-AB20-AC20+AD20 -> 115582.923 | AF20: 107020 | AG20: 1000 | AH20: 2330.07 | AI20: =(AF20-AG20-AH20)*12.36% -> 12816.07535 | AJ20: =AF20-AG20-AH20+AI20 -> 116506.0053 | AK20: 106750 | AL20: 1000 | AM20: 2324.13 | AN20: =(AK20-AL20-AM20)*12.36% -> 12783.43753 | AO20: =AK20-AL20-AM20+AN20 -> 116209.3075
A21: E45A003OG
A22: EXTR
A23: E52A003A | B23: 108050 | C23: 1000 | D23: 2352.7 | E23: =(B23-C23-D23)*12.36% -> 12940.58628 | F23: =B23-C23-D23+E23 -> 117637.8863 | G23: 108680 | H23: 1000 | I23: 2366.55 | J23: =(G23-H23-I23)*12.36% -> 13016.74242 | K23: =G23-H23-I23+J23 -> 118330.1924 | L23: 108020 | M23: 1000 | N23: 2352.04 | O23: =(L23-M23-N23)*12.36% -> 12936.95986 | P23: =L23-M23-N23+O23 -> 117604.9199 | Q23: 108020 | R23: 1000 | S23: 2352.04 | T23: =(Q23-R23-S23)*12.36% -> 12936.95986 | U23: =Q23-R23-S23+T23 -> 117604.9199 | V23: 108420 | W23: 1000 | X23: 2360.84 | Y23: =(V23-W23-X23)*12.36% -> 12985.31218 | Z23: =V23-W23-X23+Y23 -> 118044.4722 | AA23: 107850 | AB23: 1000 | AC23: 2348.31 | AD23: =(AA23-AB23-AC23)*12.36% -> 12916.40888 | AE23: =AA23-AB23-AC23+AD23 -> 117418.0989 | AF23: 108680 | AG23: 1000 | AH23: 2366.55 | AI23: =(AF23-AG23-AH23)*12.36% -> 13016.74242 | AJ23: =AF23-AG23-AH23+AI23 -> 118330.1924 | AK23: 108420 | AL23: 1000 | AM23: 2360.84 | AN23: =(AK23-AL23-AM23)*12.36% -> 12985.31218 | AO23: =AK23-AL23-AM23+AN23 -> 118044.4722
A24: E52A003OG
A25: E52U003A | B25: 111830 | C25: 1000 | D25: 2380.84 | E25: =(B25-C25-D25)*12.36% -> 13404.31618 | F25: =B25-C25-D25+E25 -> 121853.4762 | G25: 112460 | H25: 1000 | I25: 2394.68 | J25: =(G25-H25-I25)*12.36% -> 13480.47355 | K25: =G25-H25-I25+J25 -> 122545.7936 | L25: 111800 | M25: 1000 | N25: 2380.18 | O25: =(L25-M25-N25)*12.36% -> 13400.68975 | P25: =L25-M25-N25+O25 -> 121820.5098 | Q25: 111800 | R25: 1000 | S25: 2380.18 | T25: =(Q25-R25-S25)*12.36% -> 13400.68975 | U25: =Q25-R25-S25+T25 -> 121820.5098 | V25: 112200 | W25: 1000 | X25: 2388.97 | Y25: =(V25-W25-X25)*12.36% -> 13449.04331 | Z25: =V25-W25-X25+Y25 -> 122260.0733 | AA25: 111630 | AB25: 1000 | AC25: 2376.44 | AD25: =(AA25-AB25-AC25)*12.36% -> 13380.14002 | AE25: =AA25-AB25-AC25+AD25 -> 121633.7 | AF25: 112460 | AG25: 1000 | AH25: 2394.68 | AI25: =(AF25-AG25-AH25)*12.36% -> 13480.47355 | AJ25: =AF25-AG25-AH25+AI25 -> 122545.7936 | AK25: 112200 | AL25: 1000 | AM25: 2388.97 | AN25: =(AK25-AL25-AM25)*12.36% -> 13449.04331 | AO25: =AK25-AL25-AM25+AN25 -> 122260.0733
A26: E52U003OG
A27: HM FILM
A28: F55HM0003A | B28: 107440 | C28: 1000 | D28: 2339.3 | E28: =(B28-C28-D28)*12.36% -> 12866.84652 | F28: =B28-C28-D28+E28 -> 116967.5465 | G28: 107640 | H28: 1000 | I28: 2343.69 | J28: =(G28-H28-I28)*12.36% -> 12891.02392 | K28: =G28-H28-I28+J28 -> 117187.3339 | L28: 107340 | M28: 1000 | N28: 2337.1 | O28: =(L28-M28-N28)*12.36% -> 12854.75844 | P28: =L28-M28-N28+O28 -> 116857.6584 | Q28: 107340 | R28: 1000 | S28: 2337.1 | T28: =(Q28-R28-S28)*12.36% -> 12854.75844 | U28: =Q28-R28-S28+T28 -> 116857.6584 | V28: 107690 | W28: 1000 | X28: 2344.79 | Y28: =(V28-W28-X28)*12.36% -> 12897.06796 | Z28: =V28-W28-X28+Y28 -> 117242.278 | AA28: 107130 | AB28: 1000 | AC28: 2332.48 | AD28: =(AA28-AB28-AC28)*12.36% -> 12829.37347 | AE28: =AA28-AB28-AC28+AD28 -> 116626.8935 | AF28: 107960 | AG28: 1000 | AH28: 2350.73 | AI28: =(AF28-AG28-AH28)*12.36% -> 12929.70577 | AJ28: =AF28-AG28-AH28+AI28 -> 117538.9758 | AK28: 107690 | AL28: 1000 | AM28: 2344.79 | AN28: =(AK28-AL28-AM28)*12.36% -> 12897.06796 | AO28: =AK28-AL28-AM28+AN28 -> 117242.278
A29: F55HM0003OG
A30: IM HIGH
A31: I50A180A | B31: 103840 | C31: 1000 | D31: 2260.18 | E31: =(B31-C31-D31)*12.36% -> 12431.66575 | F31: =B31-C31-D31+E31 -> 113011.4858 | G31: 103940 | H31: 1000 | I31: 2262.38 | J31: =(G31-H31-I31)*12.36% -> 12443.75383 | K31: =G31-H31-I31+J31 -> 113121.3738 | L31: 103720 | M31: 1000 | N31: 2257.54 | O31: =(L31-M31-N31)*12.36% -> 12417.16006 | P31: =L31-M31-N31+O31 -> 112879.6201 | Q31: 103720 | R31: 1000 | S31: 2257.54 | T31: =(Q31-R31-S31)*12.36% -> 12417.16006 | U31: =Q31-R31-S31+T31 -> 112879.6201 | V31: 104040 | W31: 1000 | X31: 2264.57 | Y31: =(V31-W31-X31)*12.36% -> 12455.84315 | Z31: =V31-W31-X31+Y31 -> 113231.2731 | AA31: 103560 | AB31: 1000 | AC31: 2254.02 | AD31: =(AA31-AB31-AC31)*12.36% -> 12397.81913 | AE31: =AA31-AB31-AC31+AD31 -> 112703.7991 | AF31: 104300 | AG31: 1000 | AH31: 2270.29 | AI31: =(AF31-AG31-AH31)*12.36% -> 12487.27216 | AJ31: =AF31-AG31-AH31+AI31 -> 113516.9822 | AK31: 104040 | AL31: 1000 | AM31: 2264.57 | AN31: =(AK31-AL31-AM31)*12.36% -> 12455.84315 | AO31: =AK31-AL31-AM31+AN31 -> 113231.2731
A32: I50A180OG
A33: IM LOW
A34: I60A080A | B34: 105020 | C34: 1000 | D34: 2286.11 | E34: =(B34-C34-D34)*12.36% -> 12574.3088 | F34: =B34-C34-D34+E34 -> 114308.1988 | G34: 105180 | H34: 1000 | I34: 2289.63 | J34: =(G34-H34-I34)*12.36% -> 12593.64973 | K34: =G34-H34-I34+J34 -> 114484.0197 | L34: 105000 | M34: 1000 | N34: 2285.67 | O34: =(L34-M34-N34)*12.36% -> 12571.89119 | P34: =L34-M34-N34+O34 -> 114286.2212 | Q34: 105000 | R34: 1000 | S34: 2285.67 | T34: =(Q34-R34-S34)*12.36% -> 12571.89119 | U34: =Q34-R34-S34+T34 -> 114286.2212 | V34: 105400 | W34: 1000 | X34: 2294.46 | Y34: =(V34-W34-X34)*12.36% -> 12620.24474 | Z34: =V34-W34-X34+Y34 -> 114725.7847 | AA34: 104830 | AB34: 1000 | AC34: 2281.94 | AD34: =(AA34-AB34-AC34)*12.36% -> 12551.34022 | AE34: =AA34-AB34-AC34+AD34 -> 114099.4002 | AF34: 105660 | AG34: 1000 | AH34: 2300.18 | AI34: =(AF34-AG34-AH34)*12.36% -> 12651.67375 | AJ34: =AF34-AG34-AH34+AI34 -> 115011.4938 | AK34: 105400 | AL34: 1000 | AM34: 2294.46 | AN34: =(AK34-AL34-AM34)*12.36% -> 12620.24474 | AO34: =AK34-AL34-AM34+AN34 -> 114725.7847
A35: I60A080OG
A36: IM-L-UV
A37: I60U080A | B37: 106560 | C37: 1000 | D37: 2319.96 | E37: =(B37-C37-D37)*12.36% -> 12760.46894 | F37: =B37-C37-D37+E37 -> 116000.5089 | G37: 106680 | H37: 1000 | I37: 2322.59 | J37: =(G37-H37-I37)*12.36% -> 12774.97588 | K37: =G37-H37-I37+J37 -> 116132.3859 | L37: 106530 | M37: 1000 | N37: 2319.3 | O37: =(L37-M37-N37)*12.36% -> 12756.84252 | P37: =L37-M37-N37+O37 -> 115967.5425 | Q37: 106530 | R37: 1000 | S37: 2319.3 | T37: =(Q37-R37-S37)*12.36% -> 12756.84252 | U37: =Q37-R37-S37+T37 -> 115967.5425 | V37: 106930 | W37: 1000 | X37: 2328.09 | Y37: =(V37-W37-X37)*12.36% -> 12805.19608 | Z37: =V37-W37-X37+Y37 -> 116407.1061 | AA37: 106360 | AB37: 1000 | AC37: 2315.56 | AD37: =(AA37-AB37-AC37)*12.36% -> 12736.29278 | AE37: =AA37-AB37-AC37+AD37 -> 115780.7328 | AF37: 107200 | AG37: 1000 | AH37: 2334.02 | AI37: =(AF37-AG37-AH37)*12.36% -> 12837.83513 | AJ37: =AF37-AG37-AH37+AI37 -> 116703.8151 | AK37: 106930 | AL37: 1000 | AM37: 2328.09 | AN37: =(AK37-AL37-AM37)*12.36% -> 12805.19608 | AO37: =AK37-AL37-AM37+AN37 -> 116407.1061
A38: I60U080OG
A39: PIPE (PE80)
A40: P54A001A | B40: 114150 | C40: 1000 | D40: 2431.82 | E40: =(B40-C40-D40)*12.36% -> 13684.76705 | F40: =B40-C40-D40+E40 -> 124402.947 | G40: 114850 | H40: 1000 | I40: 2447.21 | J40: =(G40-H40-I40)*12.36% -> 13769.38484 | K40: =G40-H40-I40+J40 -> 125172.1748 | L40: 114050 | M40: 1000 | N40: 2429.63 | O40: =(L40-M40-N40)*12.36% -> 13672.67773 | P40: =L40-M40-N40+O40 -> 124293.0477 | Q40: 114050 | R40: 1000 | S40: 2429.63 | T40: =(Q40-R40-S40)*12.36% -> 13672.67773 | U40: =Q40-R40-S40+T40 -> 124293.0477 | V40: 114400 | W40: 1000 | X40: 2437.32 | Y40: =(V40-W40-X40)*12.36% -> 13714.98725 | Z40: =V40-W40-X40+Y40 -> 124677.6672 | AA40: 113840 | AB40: 1000 | AC40: 2425.01 | AD40: =(AA40-AB40-AC40)*12.36% -> 13647.29276 | AE40: =AA40-AB40-AC40+AD40 -> 124062.2828 | AF40: 114670 | AG40: 1000 | AH40: 2443.25 | AI40: =(AF40-AG40-AH40)*12.36% -> 13747.6263 | AJ40: =AF40-AG40-AH40+AI40 -> 124974.3763 | AK40: 114400 | AL40: 1000 | AM40: 2437.32 | AN40: =(AK40-AL40-AM40)*12.36% -> 13714.98725 | AO40: =AK40-AL40-AM40+AN40 -> 124677.6672
A41: PIPE (PE100)
A42: P52A003A | B42: 116150 | C42: 1000 | D42: 2475.78 | E42: =(B42-C42-D42)*12.36% -> 13926.53359 | F42: =B42-C42-D42+E42 -> 126600.7536 | G42: 116850 | H42: 1000 | I42: 2491.16 | J42: =(G42-H42-I42)*12.36% -> 14011.15262 | K42: =G42-H42-I42+J42 -> 127369.9926 | L42: 116050 | M42: 1000 | N42: 2473.58 | O42: =(L42-M42-N42)*12.36% -> 13914.44551 | P42: =L42-M42-N42+O42 -> 126490.8655 | Q42: 116050 | R42: 1000 | S42: 2473.58 | T42: =(Q42-R42-S42)*12.36% -> 13914.44551 | U42: =Q42-R42-S42+T42 -> 126490.8655 | V42: 116400 | W42: 1000 | X42: 2481.27 | Y42: =(V42-W42-X42)*12.36% -> 13956.75503 | Z42: =V42-W42-X42+Y42 -> 126875.485 | AA42: 115840 | AB42: 1000 | AC42: 2468.97 | AD42: =(AA42-AB42-AC42)*12.36% -> 13889.05931 | AE42: =AA42-AB42-AC42+AD42 -> 126260.0893 | AF42: 116670 | AG42: 1000 | AH42: 2487.21 | AI42: =(AF42-AG42-AH42)*12.36% -> 13989.39284 | AJ42: =AF42-AG42-AH42+AI42 -> 127172.1828 | AK42: 116400 | AL42: 1000 | AM42: 2481.27 | AN42: =(AK42-AL42-AM42)*12.36% -> 13956.75503 | AO42: =AK42-AL42-AM42+AN42 -> 126875.485
A43: RAFFIA
A44: W50A009A | B44: 108150 | C44: 1000 | D44: 2266.99 | E44: =(B44-C44-D44)*12.36% -> 12963.54004 | F44: =B44-C44-D44+E44 -> 117846.55 | G44: 108180 | H44: 1000 | I44: 2267.65 | J44: =(G44-H44-I44)*12.36% -> 12967.16646 | K44: =G44-H44-I44+J44 -> 117879.5165 | L44: 108120 | M44: 1000 | N44: 2266.33 | O44: =(L44-M44-N44)*12.36% -> 12959.91361 | P44: =L44-M44-N44+O44 -> 117813.5836 | Q44: 108120 | R44: 1000 | S44: 2266.33 | T44: =(Q44-R44-S44)*12.36% -> 12959.91361 | U44: =Q44-R44-S44+T44 -> 117813.5836 | V44: 108520 | W44: 1000 | X44: 2275.12 | Y44: =(V44-W44-X44)*12.36% -> 13008.26717 | Z44: =V44-W44-X44+Y44 -> 118253.1472 | AA44: 107950 | AB44: 1000 | AC44: 2262.6 | AD44: =(AA44-AB44-AC44)*12.36% -> 12939.36264 | AE44: =AA44-AB44-AC44+AD44 -> 117626.7626 | AF44: 108790 | AG44: 1000 | AH44: 2281.06 | AI44: =(AF44-AG44-AH44)*12.36% -> 13040.90498 | AJ44: =AF44-AG44-AH44+AI44 -> 118549.845 | AK44: 108520 | AL44: 1000 | AM44: 2275.12 | AN44: =(AK44-AL44-AM44)*12.36% -> 13008.26717 | AO44: =AK44-AL44-AM44+AN44 -> 118253.1472
A45: T50A010A | B45: 108150 | C45: 1000 | D45: 2266.99 | E45: =(B45-C45-D45)*12.36% -> 12963.54004 | F45: =B45-C45-D45+E45 -> 117846.55 | G45: 108180 | H45: 1000 | I45: 2267.65 | J45: =(G45-H45-I45)*12.36% -> 12967.16646 | K45: =G45-H45-I45+J45 -> 117879.5165 | L45: 108120 | M45: 1000 | N45: 2266.33 | O45: =(L45-M45-N45)*12.36% -> 12959.91361 | P45: =L45-M45-N45+O45 -> 117813.5836 | Q45: 108120 | R45: 1000 | S45: 2266.33 | T45: =(Q45-R45-S45)*12.36% -> 12959.91361 | U45: =Q45-R45-S45+T45 -> 117813.5836 | V45: 108520 | W45: 1000 | X45: 2275.12 | Y45: =(V45-W45-X45)*12.36% -> 13008.26717 | Z45: =V45-W45-X45+Y45 -> 118253.1472 | AA45: 107950 | AB45: 1000 | AC45: 2262.6 | AD45: =(AA45-AB45-AC45)*12.36% -> 12939.36264 | AE45: =AA45-AB45-AC45+AD45 -> 117626.7626 | AF45: 108790 | AG45: 1000 | AH45: 2281.06 | AI45: =(AF45-AG45-AH45)*12.36% -> 13040.90498 | AJ45: =AF45-AG45-AH45+AI45 -> 118549.845 | AK45: 108520 | AL45: 1000 | AM45: 2275.12 | AN45: =(AK45-AL45-AM45)*12.36% -> 13008.26717 | AO45: =AK45-AL45-AM45+AN45 -> 118253.1472
A46: MF
A47: W52A009A | B47: 104650 | C47: 1000 | D47: 2277.98 | E47: =(B47-C47-D47)*12.36% -> 12529.58167 | F47: =B47-C47-D47+E47 -> 113901.6017 | G47: 104680 | H47: 1000 | I47: 2278.64 | J47: =(G47-H47-I47)*12.36% -> 12533.2081 | K47: =G47-H47-I47+J47 -> 113934.5681 | L47: 104620 | M47: 1000 | N47: 2277.32 | O47: =(L47-M47-N47)*12.36% -> 12525.95525 | P47: =L47-M47-N47+O47 -> 113868.6352 | Q47: 104620 | R47: 1000 | S47: 2277.32 | T47: =(Q47-R47-S47)*12.36% -> 12525.95525 | U47: =Q47-R47-S47+T47 -> 113868.6352 | V47: 105020 | W47: 1000 | X47: 2286.11 | Y47: =(V47-W47-X47)*12.36% -> 12574.3088 | Z47: =V47-W47-X47+Y47 -> 114308.1988 | AA47: 104450 | AB47: 1000 | AC47: 2273.58 | AD47: =(AA47-AB47-AC47)*12.36% -> 12505.40551 | AE47: =AA47-AB47-AC47+AD47 -> 113681.8255 | AF47: 105290 | AG47: 1000 | AH47: 2292.05 | AI47: =(AF47-AG47-AH47)*12.36% -> 12606.94662 | AJ47: =AF47-AG47-AH47+AI47 -> 114604.8966 | AK47: 105020 | AL47: 1000 | AM47: 2286.11 | AN47: =(AK47-AL47-AM47)*12.36% -> 12574.3088 | AO47: =AK47-AL47-AM47+AN47 -> 114308.1988
A48: W52A009OG
A49: W52ASR009A | B49: 104650 | C49: 1000 | D49: 2277.98 | E49: =(B49-C49-D49)*12.36% -> 12529.58167 | F49: =B49-C49-D49+E49 -> 113901.6017 | G49: 104680 | H49: 1000 | I49: 2278.64 | J49: =(G49-H49-I49)*12.36% -> 12533.2081 | K49: =G49-H49-I49+J49 -> 113934.5681 | L49: 104620 | M49: 1000 | N49: 2277.32 | O49: =(L49-M49-N49)*12.36% -> 12525.95525 | P49: =L49-M49-N49+O49 -> 113868.6352 | Q49: 104620 | R49: 1000 | S49: 2277.32 | T49: =(Q49-R49-S49)*12.36% -> 12525.95525 | U49: =Q49-R49-S49+T49 -> 113868.6352 | V49: 105020 | W49: 1000 | X49: 2286.11 | Y49: =(V49-W49-X49)*12.36% -> 12574.3088 | Z49: =V49-W49-X49+Y49 -> 114308.1988 | AA49: 104450 | AB49: 1000 | AC49: 2273.58 | AD49: =(AA49-AB49-AC49)*12.36% -> 12505.40551 | AE49: =AA49-AB49-AC49+AD49 -> 113681.8255 | AF49: 105290 | AG49: 1000 | AH49: 2292.05 | AI49: =(AF49-AG49-AH49)*12.36% -> 12606.94662 | AJ49: =AF49-AG49-AH49+AI49 -> 114604.8966 | AK49: 105020 | AL49: 1000 | AM49: 2286.11 | AN49: =(AK49-AL49-AM49)*12.36% -> 12574.3088 | AO49: =AK49-AL49-AM49+AN49 -> 114308.1988
A50: W55A004A | B50: 107650 | C50: 1000 | D50: 2343.91 | E50: =(B50-C50-D50)*12.36% -> 12892.23272 | F50: =B50-C50-D50+E50 -> 117198.3227 | G50: 108180 | H50: 1000 | I50: 2355.56 | J50: =(G50-H50-I50)*12.36% -> 12956.30078 | K50: =G50-H50-I50+J50 -> 117780.7408 | L50: 107620 | M50: 1000 | N50: 2343.25 | O50: =(L50-M50-N50)*12.36% -> 12888.6063 | P50: =L50-M50-N50+O50 -> 117165.3563 | Q50: 107620 | R50: 1000 | S50: 2343.25 | T50: =(Q50-R50-S50)*12.36% -> 12888.6063 | U50: =Q50-R50-S50+T50 -> 117165.3563 | V50: 108020 | W50: 1000 | X50: 2352.04 | Y50: =(V50-W50-X50)*12.36% -> 12936.95986 | Z50: =V50-W50-X50+Y50 -> 117604.9199 | AA50: 107450 | AB50: 1000 | AC50: 2339.52 | AD50: =(AA50-AB50-AC50)*12.36% -> 12868.05533 | AE50: =AA50-AB50-AC50+AD50 -> 116978.5353 | AF50: 108290 | AG50: 1000 | AH50: 2357.98 | AI50: =(AF50-AG50-AH50)*12.36% -> 12969.59767 | AJ50: =AF50-AG50-AH50+AI50 -> 117901.6177 | AK50: 108020 | AL50: 1000 | AM50: 2352.04 | AN50: =(AK50-AL50-AM50)*12.36% -> 12936.95986 | AO50: =AK50-AL50-AM50+AN50 -> 117604.9199
A51: LLDPE
A52: E20AN009A | B52: 106410 | C52: 1000 | D52: 2316.66 | E52: =(B52-C52-D52)*12.36% -> 12742.33682 | F52: =B52-C52-D52+E52 -> 115835.6768 | G52: 107080 | H52: 1000 | I52: 2331.39 | J52: =(G52-H52-I52)*12.36% -> 12823.3282 | K52: =G52-H52-I52+J52 -> 116571.9382 | L52: 106380 | M52: 1000 | N52: 2316 | O52: =(L52-M52-N52)*12.36% -> 12738.7104 | P52: =L52-M52-N52+O52 -> 115802.7104 | Q52: 106380 | R52: 1000 | S52: 2316 | T52: =(Q52-R52-S52)*12.36% -> 12738.7104 | U52: =Q52-R52-S52+T52 -> 115802.7104 | V52: 106790 | W52: 1000 | X52: 2325.01 | Y52: =(V52-W52-X52)*12.36% -> 12788.27276 | Z52: =V52-W52-X52+Y52 -> 116253.2628 | AA52: 106210 | AB52: 1000 | AC52: 2312.26 | AD52: =(AA52-AB52-AC52)*12.36% -> 12718.16066 | AE52: =AA52-AB52-AC52+AD52 -> 115615.9007 | AF52: 107050 | AG52: 1000 | AH52: 2330.73 | AI52: =(AF52-AG52-AH52)*12.36% -> 12819.70177 | AJ52: =AF52-AG52-AH52+AI52 -> 116538.9718 | AK52: 106790 | AL52: 1000 | AM52: 2325.01 | AN52: =(AK52-AL52-AM52)*12.36% -> 12788.27276 | AO52: =AK52-AL52-AM52+AN52 -> 116253.2628
A53: E20AN009OG
A54: E36A060A | B54: 110450 | C54: 1000 | D54: 2405.45 | E54: =(B54-C54-D54)*12.36% -> 13230.70638 | F54: =B54-C54-D54+E54 -> 120275.2564 | G54: 111080 | H54: 1000 | I54: 2419.3 | J54: =(G54-H54-I54)*12.36% -> 13306.86252 | K54: =G54-H54-I54+J54 -> 120967.5625 | L54: 110430 | M54: 1000 | N54: 2405.01 | O54: =(L54-M54-N54)*12.36% -> 13228.28876 | P54: =L54-M54-N54+O54 -> 120253.2788 | Q54: 110430 | R54: 1000 | S54: 2405.01 | T54: =(Q54-R54-S54)*12.36% -> 13228.28876 | U54: =Q54-R54-S54+T54 -> 120253.2788 | V54: 110830 | W54: 1000 | X54: 2413.8 | Y54: =(V54-W54-X54)*12.36% -> 13276.64232 | Z54: =V54-W54-X54+Y54 -> 120692.8423 | AA54: 110260 | AB54: 1000 | AC54: 2401.27 | AD54: =(AA54-AB54-AC54)*12.36% -> 13207.73903 | AE54: =AA54-AB54-AC54+AD54 -> 120066.469 | AF54: 111090 | AG54: 1000 | AH54: 2419.52 | AI54: =(AF54-AG54-AH54)*12.36% -> 13308.07133 | AJ54: =AF54-AG54-AH54+AI54 -> 120978.5513 | AK54: 110830 | AL54: 1000 | AM54: 2413.8 | AN54: =(AK54-AL54-AM54)*12.36% -> 13276.64232 | AO54: =AK54-AL54-AM54+AN54 -> 120692.8423
A55: E36A060OG
A56: FILM
A57: F20S009A | B57: 107910 | C57: 1000 | D57: 2349.63 | E57: =(B57-C57-D57)*12.36% -> 12923.66173 | F57: =B57-C57-D57+E57 -> 117484.0317 | G57: 108580 | H57: 1000 | I57: 2364.65 | J57: =(G57-H57-I57)*12.36% -> 13004.61726 | K57: =G57-H57-I57+J57 -> 118219.9673 | L57: 107880 | M57: 1000 | N57: 2348.97 | O57: =(L57-M57-N57)*12.36% -> 12920.03531 | P57: =L57-M57-N57+O57 -> 117451.0653 | Q57: 107880 | R57: 1000 | S57: 2348.97 | T57: =(Q57-R57-S57)*12.36% -> 12920.03531 | U57: =Q57-R57-S57+T57 -> 117451.0653 | V57: 108290 | W57: 1000 | X57: 2357.98 | Y57: =(V57-W57-X57)*12.36% -> 12969.59767 | Z57: =V57-W57-X57+Y57 -> 117901.6177 | AA57: 107710 | AB57: 1000 | AC57: 2345.23 | AD57: =(AA57-AB57-AC57)*12.36% -> 12899.48557 | AE57: =AA57-AB57-AC57+AD57 -> 117264.2556 | AF57: 108550 | AG57: 1000 | AH57: 2363.69 | AI57: =(AF57-AG57-AH57)*12.36% -> 13001.02792 | AJ57: =AF57-AG57-AH57+AI57 -> 118187.3379 | AK57: 108290 | AL57: 1000 | AM57: 2357.98 | AN57: =(AK57-AL57-AM57)*12.36% -> 12969.59767 | AO57: =AK57-AL57-AM57+AN57 -> 117901.6177
A58: F20S009OG
A59: D22S010A | B59: 106910 | C59: 1000 | D59: 2327.65 | E59: =(B59-C59-D59)*12.36% -> 12802.77846 | F59: =B59-C59-D59+E59 -> 116385.1285 | G59: 107580 | H59: 1000 | I59: 2342.37 | J59: =(G59-H59-I59)*12.36% -> 12883.77107 | K59: =G59-H59-I59+J59 -> 117121.4011 | L59: 106880 | M59: 1000 | N59: 2326.99 | O59: =(L59-M59-N59)*12.36% -> 12799.15204 | P59: =L59-M59-N59+O59 -> 116352.162 | Q59: 106880 | R59: 1000 | S59: 2326.99 | T59: =(Q59-R59-S59)*12.36% -> 12799.15204 | U59: =Q59-R59-S59+T59 -> 116352.162 | V59: 107290 | W59: 1000 | X59: 2336 | Y59: =(V59-W59-X59)*12.36% -> 12848.7144 | Z59: =V59-W59-X59+Y59 -> 116802.7144 | AA59: 106710 | AB59: 1000 | AC59: 2323.25 | AD59: =(AA59-AB59-AC59)*12.36% -> 12778.6023 | AE59: =AA59-AB59-AC59+AD59 -> 116165.3523 | AF59: 107550 | AG59: 1000 | AH59: 2341.71 | AI59: =(AF59-AG59-AH59)*12.36% -> 12880.14464 | AJ59: =AF59-AG59-AH59+AI59 -> 117088.4346 | AK59: 107290 | AL59: 1000 | AM59: 2336 | AN59: =(AK59-AL59-AM59)*12.36% -> 12848.7144 | AO59: =AK59-AL59-AM59+AN59 -> 116802.7144
A60: ROTO
A61: R35A042A | B61: 107540 | C61: 1000 | D61: 2341.5 | E61: =(B61-C61-D61)*12.36% -> 12878.9346 | F61: =B61-C61-D61+E61 -> 117077.4346 | G61: 108240 | H61: 1000 | I61: 2356.88 | J61: =(G61-H61-I61)*12.36% -> 12963.55363 | K61: =G61-H61-I61+J61 -> 117846.6736 | L61: 107440 | M61: 1000 | N61: 2339.3 | O61: =(L61-M61-N61)*12.36% -> 12866.84652 | P61: =L61-M61-N61+O61 -> 116967.5465 | Q61: 107440 | R61: 1000 | S61: 2339.3 | T61: =(Q61-R61-S61)*12.36% -> 12866.84652 | U61: =Q61-R61-S61+T61 -> 116967.5465 | V61: 107790 | W61: 1000 | X61: 2346.99 | Y61: =(V61-W61-X61)*12.36% -> 12909.15604 | Z61: =V61-W61-X61+Y61 -> 117352.166 | AA61: 107230 | AB61: 1000 | AC61: 2334.68 | AD61: =(AA61-AB61-AC61)*12.36% -> 12841.46155 | AE61: =AA61-AB61-AC61+AD61 -> 116736.7816 | AF61: 108060 | AG61: 1000 | AH61: 2352.92 | AI61: =(AF61-AG61-AH61)*12.36% -> 12941.79509 | AJ61: =AF61-AG61-AH61+AI61 -> 117648.8751 | AK61: 107790 | AL61: 1000 | AM61: 2346.99 | AN61: =(AK61-AL61-AM61)*12.36% -> 12909.15604 | AO61: =AK61-AL61-AM61+AN61 -> 117352.166
A62: R35U042A | B62: 108400 | C62: 1000 | D62: 2360.4 | E62: =(B62-C62-D62)*12.36% -> 12982.89456 | F62: =B62-C62-D62+E62 -> 118022.4946 | G62: 109100 | H62: 1000 | I62: 2375.78 | J62: =(G62-H62-I62)*12.36% -> 13067.51359 | K62: =G62-H62-I62+J62 -> 118791.7336 | L62: 108300 | M62: 1000 | N62: 2358.2 | O62: =(L62-M62-N62)*12.36% -> 12970.80648 | P62: =L62-M62-N62+O62 -> 117912.6065 | Q62: 108300 | R62: 1000 | S62: 2358.2 | T62: =(Q62-R62-S62)*12.36% -> 12970.80648 | U62: =Q62-R62-S62+T62 -> 117912.6065 | V62: 108650 | W62: 1000 | X62: 2365.89 | Y62: =(V62-W62-X62)*12.36% -> 13013.116 | Z62: =V62-W62-X62+Y62 -> 118297.226 | AA62: 108090 | AB62: 1000 | AC62: 2353.58 | AD62: =(AA62-AB62-AC62)*12.36% -> 12945.42151 | AE62: =AA62-AB62-AC62+AD62 -> 117681.8415 | AF62: 108920 | AG62: 1000 | AH62: 2371.82 | AI62: =(AF62-AG62-AH62)*12.36% -> 13045.75505 | AJ62: =AF62-AG62-AH62+AI62 -> 118593.935 | AK62: 108650 | AL62: 1000 | AM62: 2365.89 | AN62: =(AK62-AL62-AM62)*12.36% -> 13013.116 | AO62: =AK62-AL62-AM62+AN62 -> 118297.226
A64: NOTE : | B64: THE PRICES OF OLD PLANT & NEW PLANT ARE SAME FROM DIRECT SALE

Sheet Sheet3
A2: UNITED BROTHERS
A4: 301,HERITAGE PLAZA, R.S.MAHARAJ MARG,( TELI GALLI CROSS LANE), ANDHERI (E), MUMBAI - 400 069
A5: EL: 26844612(4 LINES) FAX: 26822914 E-MAIL: info@unibrothers.com , prashant@unibrothers.com, jyoti@unibrothers.com
A6: EX-WORKS PRICE OF HDPE "G-LEX / G-LENE " W.E.F.20TH MARCH 2014
A7: CASH / ADVANCE PAYMENT FOR MAHARASHTRA & DAMAN
B8: Freight | D8: 2507.05 | G8: Freight | I8: 4749.82 | L8: Freight | N8: 2573.77 | Q8: Freight 1210.75 | V8: Freight | X8: 5162.96 | AA8: Freight
D9: BARJORA | G9: HOSUR | L9: JAMMU | Q9: NOIDA | V9: PONDICHERRY | AA9: BARODA
B10: BASIC | C10: DISC | D10: LOC | E10: EXCISE | F10: EX-WKS | G10: BASIC | H10: DISC | I10: LOC | J10: EXCISE | K10: EX-WKS | L10: BASIC | M10: DISC | N10: LOC | O10: EXCISE | P10: EX-WKS | Q10: BASIC | R10: DISC | S10: LOC | T10: EXCISE | U10: EX-WKS | W10: DISC | X10: LOC | Y10: EXCISE | Z10: EX-WKS | AB10: DISC | AC10: LOC | AD10: EXCISE | AE10: EX-WKS
A11: BM
A12: B52A003A | B12: 106880 | C12: 1000 | D12: 2326.99 | E12: =(B12-C12-D12)*12.36% -> 12799.15204 | F12: =B12-C12-D12+E12 -> 116352.162 | G12: 105160 | H12: 1000 | I12: 2289.19 | J12: =(G12-H12-I12)*12.36% -> 12591.23212 | K12: =G12-H12-I12+J12 -> 114462.0421 | L12: 110280 | M12: 1000 | N12: 2401.71 | O12: =(L12-M12-N12)*12.36% -> 13210.15664 | P12: =L12-M12-N12+O12 -> 120088.4466 | Q12: 108140 | R12: 1000 | S12: 0 | T12: =(Q12-R12-S12)*12.36% -> 13242.504 | U12: =Q12-R12-S12+T12 -> 120382.504 | V12: 105290 | W12: 1000 | X12: 2292.05 | Y12: =(V12-W12-X12)*12.36% -> 12606.94662 | Z12: =V12-W12-X12+Y12 -> 114604.8966 | AA12: 108200 | AB12: 1000 | AC12: 2356 | AD12: =(AA12-AB12-AC12)*12.36% -> 12958.7184 | AE12: =AA12-AB12-AC12+AD12 -> 117802.7184
A13: B63A003A | B13: 106880 | C13: 1000 | D13: 2326.99 | E13: =(B13-C13-D13)*12.36% -> 12799.15204 | F13: =B13-C13-D13+E13 -> 116352.162 | G13: 105160 | H13: 1000 | I13: 2289.19 | J13: =(G13-H13-I13)*12.36% -> 12591.23212 | K13: =G13-H13-I13+J13 -> 114462.0421 | L13: 110280 | M13: 1000 | N13: 2401.71 | O13: =(L13-M13-N13)*12.36% -> 13210.15664 | P13: =L13-M13-N13+O13 -> 120088.4466 | Q13: 108140 | R13: 1000 | S13: 0 | T13: =(Q13-R13-S13)*12.36% -> 13242.504 | U13: =Q13-R13-S13+T13 -> 120382.504 | V13: 105290 | W13: 1000 | X13: 2292.05 | Y13: =(V13-W13-X13)*12.36% -> 12606.94662 | Z13: =V13-W13-X13+Y13 -> 114604.8966 | AA13: 108200 | AB13: 1000 | AC13: 2356 | AD13: =(AA13-AB13-AC13)*12.36% -> 12958.7184 | AE13: =AA13-AB13-AC13+AD13 -> 117802.7184
A14: B55HM0003A | B14: 113170 | C14: 1000 | D14: 2465.23 | E14: =(B14-C14-D14)*12.36% -> 13559.50957 | F14: =B14-C14-D14+E14 -> 123264.2796 | G14: 109400 | H14: 1000 | I14: 2382.37 | J14: =(G14-H14-I14)*12.36% -> 13103.77907 | K14: =G14-H14-I14+J14 -> 119121.4091 | L14: 114420 | M14: 1000 | N14: 2492.7 | O14: =(L14-M14-N14)*12.36% -> 13710.61428 | P14: =L14-M14-N14+O14 -> 124637.9143 | Q14: 112370 | R14: 1000 | S14: 0 | T14: =(Q14-R14-S14)*12.36% -> 13765.332 | U14: =Q14-R14-S14+T14 -> 125135.332 | V14: 110430 | W14: 1000 | X14: 2405.01 | Y14: =(V14-W14-X14)*12.36% -> 13228.28876 | Z14: =V14-W14-X14+Y14 -> 120253.2788 | AA14: 112560 | AB14: 1000 | AC14: 2451.82 | AD14: =(AA14-AB14-AC14)*12.36% -> 13485.77105 | AE14: =AA14-AB14-AC14+AD14 -> 122593.951
A15: CABLE-INSUL
A16: C43D006A | B16: 105960 | C16: 1000 | D16: 2306.76 | E16: =(B16-C16-D16)*12.36% -> 12687.94046 | F16: =B16-C16-D16+E16 -> 115341.1805 | G16: 103224 | H16: 1000 | I16: 2246.63 | J16: =(G16-H16-I16)*12.36% -> 12357.20293 | K16: =G16-H16-I16+J16 -> 112334.5729 | L16: 108306 | M16: 1000 | N16: 2358.33 | O16: =(L16-M16-N16)*12.36% -> 12971.53201 | P16: =L16-M16-N16+O16 -> 117919.202 | Q16: 106349 | R16: 1000 | S16: 0 | T16: =(Q16-R16-S16)*12.36% -> 13021.1364 | U16: =Q16-R16-S16+T16 -> 118370.1364 | V16: 103366 | W16: 1000 | X16: 2249.76 | Y16: =(V16-W16-X16)*12.36% -> 12374.36726 | Z16: =V16-W16-X16+Y16 -> 112490.6073 | AA16: 105821 | AB16: 1000 | AC16: 2303.7 | AD16: =(AA16-AB16-AC16)*12.36% -> 12671.13828 | AE16: =AA16-AB16-AC16+AD16 -> 115188.4383
A18: SHETG
A19: E45A003A | B19: 107060 | C19: 1000 | D19: 2330.95 | E19: =(B19-C19-D19)*12.36% -> 12820.91058 | F19: =B19-C19-D19+E19 -> 116549.9606 | G19: 104170 | H19: 1000 | I19: 2267.43 | J19: =(G19-H19-I19)*12.36% -> 12471.55765 | K19: =G19-H19-I19+J19 -> 113374.1277 | L19: 109520 | M19: 1000 | N19: 2385.01 | O19: =(L19-M19-N19)*12.36% -> 13118.28476 | P19: =L19-M19-N19+O19 -> 119253.2748 | Q19: 107460 | R19: 1000 | S19: 0 | T19: =(Q19-R19-S19)*12.36% -> 13158.456 | U19: =Q19-R19-S19+T19 -> 119618.456 | V19: 104320 | W19: 1000 | X19: 2270.73 | Y19: =(V19-W19-X19)*12.36% -> 12489.68977 | Z19: =V19-W19-X19+Y19 -> 113538.9598 | AA19: 107090 | AB19: 1000 | AC19: 2331.61 | AD19: =(AA19-AB19-AC19)*12.36% -> 12824.537 | AE19: =AA19-AB19-AC19+AD19 -> 116582.927
A20: E45A003OG
A21: EXTR
A22: E52A003A | B22: 107580 | C22: 1000 | D22: 2342.37 | E22: =(B22-C22-D22)*12.36% -> 12883.77107 | F22: =B22-C22-D22+E22 -> 117121.4011 | G22: 105840 | H22: 1000 | I22: 2304.13 | J22: =(G22-H22-I22)*12.36% -> 12673.43353 | K22: =G22-H22-I22+J22 -> 115209.3035 | L22: 111190 | M22: 1000 | N22: 2421.71 | O22: =(L22-M22-N22)*12.36% -> 13320.16064 | P22: =L22-M22-N22+O22 -> 121088.4506 | Q22: 109130 | R22: 1000 | S22: 0 | T22: =(Q22-R22-S22)*12.36% -> 13364.868 | U22: =Q22-R22-S22+T22 -> 121494.868 | V22: 105990 | W22: 1000 | X22: 2307.43 | Y22: =(V22-W22-X22)*12.36% -> 12691.56565 | Z22: =V22-W22-X22+Y22 -> 115374.1357 | AA22: 109190 | AB22: 1000 | AC22: 2377.76 | AD22: =(AA22-AB22-AC22)*12.36% -> 13078.39286 | AE22: =AA22-AB22-AC22+AD22 -> 118890.6329
A23: E52A003OG
A24: E52U003A | B24: 111360 | C24: 1000 | D24: 2370.51 | E24: =(B24-C24-D24)*12.36% -> 13347.50096 | F24: =B24-C24-D24+E24 -> 121336.991 | G24: 109620 | H24: 1000 | I24: 2332.26 | J24: =(G24-H24-I24)*12.36% -> 13137.16466 | K24: =G24-H24-I24+J24 -> 119424.9047 | L24: 114970 | M24: 1000 | N24: 2449.84 | O24: =(L24-M24-N24)*12.36% -> 13783.89178 | P24: =L24-M24-N24+O24 -> 125304.0518 | Q24: 112910 | R24: 1000 | S24: 0 | T24: =(Q24-R24-S24)*12.36% -> 13832.076 | U24: =Q24-R24-S24+T24 -> 125742.076 | V24: 109770 | W24: 1000 | X24: 2335.56 | Y24: =(V24-W24-X24)*12.36% -> 13155.29678 | Z24: =V24-W24-X24+Y24 -> 119589.7368 | AA24: 112970 | AB24: 1000 | AC24: 2405.89 | AD24: =(AA24-AB24-AC24)*12.36% -> 13542.124 | AE24: =AA24-AB24-AC24+AD24 -> 123106.234
A25: E52U003OG
A26: HM FILM
A27: F55HM0003A | B27: 106850 | C27: 1000 | D27: 2326.33 | E27: =(B27-C27-D27)*12.36% -> 12795.52561 | F27: =B27-C27-D27+E27 -> 116319.1956 | G27: 105450 | H27: 1000 | I27: 2295.56 | J27: =(G27-H27-I27)*12.36% -> 12626.28878 | K27: =G27-H27-I27+J27 -> 114780.7288 | L27: 110470 | M27: 1000 | N27: 2405.89 | O27: =(L27-M27-N27)*12.36% -> 13233.124 | P27: =L27-M27-N27+O27 -> 120297.234 | Q27: 108420 | R27: 1000 | S27: 0 | T27: =(Q27-R27-S27)*12.36% -> 13277.112 | U27: =Q27-R27-S27+T27 -> 120697.112 | V27: 106460 | W27: 1000 | X27: 2317.76 | Y27: =(V27-W27-X27)*12.36% -> 12748.38086 | Z27: =V27-W27-X27+Y27 -> 115890.6209 | AA27: 108110 | AB27: 1000 | AC27: 2354.02 | AD27: =(AA27-AB27-AC27)*12.36% -> 12947.83913 | AE27: =AA27-AB27-AC27+AD27 -> 117703.8191
A28: F55HM0003OG
A29: IM HIGH
A30: I50A180A | B30: 103660 | C30: 1000 | D30: 2256.22 | E30: =(B30-C30-D30)*12.36% -> 12409.90721 | F30: =B30-C30-D30+E30 -> 112813.6872 | G30: 101760 | H30: 1000 | I30: 2214.46 | J30: =(G30-H30-I30)*12.36% -> 12180.22874 | K30: =G30-H30-I30+J30 -> 110725.7687 | L30: 106840 | M30: 1000 | N30: 2326.11 | O30: =(L30-M30-N30)*12.36% -> 12794.3168 | P30: =L30-M30-N30+O30 -> 116308.2068 | Q30: 104660 | R30: 1000 | S30: 0 | T30: =(Q30-R30-S30)*12.36% -> 12812.376 | U30: =Q30-R30-S30+T30 -> 116472.376 | V30: 102280 | W30: 1000 | X30: 2225.89 | Y30: =(V30-W30-X30)*12.36% -> 12243.088 | Z30: =V30-W30-X30+Y30 -> 111297.198 | AA30: 104390 | AB30: 1000 | AC30: 2272.27 | AD30: =(AA30-AB30-AC30)*12.36% -> 12498.15143 | AE30: =AA30-AB30-AC30+AD30 -> 113615.8814
A31: I50A180OG
A32: IM LOW
A33: I60A080A | B33: 105710 | C33: 1000 | D33: 2301.28 | E33: =(B33-C33-D33)*12.36% -> 12657.71779 | F33: =B33-C33-D33+E33 -> 115066.4378 | G33: 102820 | H33: 1000 | I33: 2237.76 | J33: =(G33-H33-I33)*12.36% -> 12308.36486 | K33: =G33-H33-I33+J33 -> 111890.6049 | L33: 108170 | M33: 1000 | N33: 2355.34 | O33: =(L33-M33-N33)*12.36% -> 12955.09198 | P33: =L33-M33-N33+O33 -> 117769.752 | Q33: 106110 | R33: 1000 | S33: 0 | T33: =(Q33-R33-S33)*12.36% -> 12991.596 | U33: =Q33-R33-S33+T33 -> 118101.596 | V33: 102970 | W33: 1000 | X33: 2241.06 | Y33: =(V33-W33-X33)*12.36% -> 12326.49698 | Z33: =V33-W33-X33+Y33 -> 112055.437 | AA33: 105690 | AB33: 1000 | AC33: 2300.84 | AD33: =(AA33-AB33-AC33)*12.36% -> 12655.30018 | AE33: =AA33-AB33-AC33+AD33 -> 115044.4602
A34: I60A080OG
A35: IM-L-UV
A36: I60U080A | B36: 107240 | C36: 1000 | D36: 2334.9 | E36: =(B36-C36-D36)*12.36% -> 12842.67036 | F36: =B36-C36-D36+E36 -> 116747.7704 | G36: 104350 | H36: 1000 | I36: 2271.39 | J36: =(G36-H36-I36)*12.36% -> 12493.3162 | K36: =G36-H36-I36+J36 -> 113571.9262 | L36: 109700 | M36: 1000 | N36: 2388.97 | O36: =(L36-M36-N36)*12.36% -> 13140.04331 | P36: =L36-M36-N36+O36 -> 119451.0733 | Q36: 107640 | R36: 1000 | S36: 0 | T36: =(Q36-R36-S36)*12.36% -> 13180.704 | U36: =Q36-R36-S36+T36 -> 119820.704 | V36: 104500 | W36: 1000 | X36: 2274.68 | Y36: =(V36-W36-X36)*12.36% -> 12511.44955 | Z36: =V36-W36-X36+Y36 -> 113736.7696 | AA36: 107190 | AB36: 1000 | AC36: 2333.8 | AD36: =(AA36-AB36-AC36)*12.36% -> 12836.62632 | AE36: =AA36-AB36-AC36+AD36 -> 116692.8263
A37: I60U080OG
A38: PIPE (PE80)
A39: P54A001A | B39: 115570 | C39: 1000 | D39: 2463.03 | E39: =(B39-C39-D39)*12.36% -> 13856.42149 | F39: =B39-C39-D39+E39 -> 125963.3915 | G39: 112160 | H39: 1000 | I39: 2388.09 | J39: =(G39-H39-I39)*12.36% -> 13444.20808 | K39: =G39-H39-I39+J39 -> 122216.1181 | L39: 117180 | M39: 1000 | N39: 2498.42 | O39: =(L39-M39-N39)*12.36% -> 14051.04329 | P39: =L39-M39-N39+O39 -> 127732.6233 | Q39: 115130 | R39: 1000 | S39: 0 | T39: =(Q39-R39-S39)*12.36% -> 14106.468 | U39: =Q39-R39-S39+T39 -> 128236.468 | V39: 113230 | W39: 1000 | X39: 2411.6 | Y39: =(V39-W39-X39)*12.36% -> 13573.55424 | Z39: =V39-W39-X39+Y39 -> 123391.9542 | AA39: 115320 | AB39: 1000 | AC39: 2457.54 | AD39: =(AA39-AB39-AC39)*12.36% -> 13826.20006 | AE39: =AA39-AB39-AC39+AD39 -> 125688.6601
A40: P54A001OG
A41: PIPE (PE100)
A42: P52A003A | B42: 117580 | C42: 1000 | D42: 2507.21 | E42: =(B42-C42-D42)*12.36% -> 14099.39684 | F42: =B42-C42-D42+E42 -> 128172.1868 | G42: 114160 | H42: 1000 | I42: 2432.04 | J42: =(G42-H42-I42)*12.36% -> 13685.97586 | K42: =G42-H42-I42+J42 -> 124413.9359 | L42: 119180 | M42: 1000 | N42: 2542.37 | O42: =(L42-M42-N42)*12.36% -> 14292.81107 | P42: =L42-M42-N42+O42 -> 129930.4411 | Q42: 117130 | R42: 1000 | S42: 0 | T42: =(Q42-R42-S42)*12.36% -> 14353.668 | U42: =Q42-R42-S42+T42 -> 130483.668 | V42: 115240 | W42: 1000 | X42: 2455.78 | Y42: =(V42-W42-X42)*12.36% -> 13816.52959 | Z42: =V42-W42-X42+Y42 -> 125600.7496 | AA42: 117320 | AB42: 1000 | AC42: 2501.49 | AD42: =(AA42-AB42-AC42)*12.36% -> 14067.96784 | AE42: =AA42-AB42-AC42+AD42 -> 127886.4778
A43: RAFFIA
A44: W50A009A | B44: 108430 | C44: 1000 | D44: 2273.14 | E44: =(B44-C44-D44)*12.36% -> 12997.3879 | F44: =B44-C44-D44+E44 -> 118154.2479 | G44: 105940 | H44: 1000 | I44: 2218.42 | J44: =(G44-H44-I44)*12.36% -> 12696.38729 | K44: =G44-H44-I44+J44 -> 115417.9673 | L44: 111290 | M44: 1000 | N44: 2336 | O44: =(L44-M44-N44)*12.36% -> 13343.1144 | P44: =L44-M44-N44+O44 -> 121297.1144 | Q44: 109230 | R44: 1000 | S44: 0 | T44: =(Q44-R44-S44)*12.36% -> 13377.228 | U44: =Q44-R44-S44+T44 -> 121607.228 | V44: 105590 | W44: 1000 | X44: 2210.73 | Y44: =(V44-W44-X44)*12.36% -> 12654.07777 | Z44: =V44-W44-X44+Y44 -> 115033.3478 | AA44: 108690 | AB44: 1000 | AC44: 2278.86 | AD44: =(AA44-AB44-AC44)*12.36% -> 13028.8169 | AE44: =AA44-AB44-AC44+AD44 -> 118439.9569
A45: T50A010A | B45: 108430 | C45: 1000 | D45: 2273.14 | E45: =(B45-C45-D45)*12.36% -> 12997.3879 | F45: =B45-C45-D45+E45 -> 118154.2479 | G45: 105940 | H45: 1000 | I45: 2218.42 | J45: =(G45-H45-I45)*12.36% -> 12696.38729 | K45: =G45-H45-I45+J45 -> 115417.9673 | L45: 111290 | M45: 1000 | N45: 2336 | O45: =(L45-M45-N45)*12.36% -> 13343.1144 | P45: =L45-M45-N45+O45 -> 121297.1144 | Q45: 109230 | R45: 1000 | S45: 0 | T45: =(Q45-R45-S45)*12.36% -> 13377.228 | U45: =Q45-R45-S45+T45 -> 121607.228 | V45: 106090 | W45: 1000 | X45: 2221.72 | Y45: =(V45-W45-X45)*12.36% -> 12714.51941 | Z45: =V45-W45-X45+Y45 -> 115582.7994 | AA45: 108690 | AB45: 1000 | AC45: 2278.86 | AD45: =(AA45-AB45-AC45)*12.36% -> 13028.8169 | AE45: =AA45-AB45-AC45+AD45 -> 118439.9569
A46: MF
A47: W52A009A | B47: 105330 | C47: 1000 | D47: 2292.92 | E47: =(B47-C47-D47)*12.36% -> 12611.78309 | F47: =B47-C47-D47+E47 -> 114648.8631 | G47: 102440 | H47: 1000 | I47: 2229.41 | J47: =(G47-H47-I47)*12.36% -> 12262.42892 | K47: =G47-H47-I47+J47 -> 111473.0189 | L47: 107790 | M47: 1000 | N47: 2346.99 | O47: =(L47-M47-N47)*12.36% -> 12909.15604 | P47: =L47-M47-N47+O47 -> 117352.166 | Q47: 105730 | R47: 1000 | S47: 0 | T47: =(Q47-R47-S47)*12.36% -> 12944.628 | U47: =Q47-R47-S47+T47 -> 117674.628 | V47: 102590 | W47: 1000 | X47: 2232.71 | Y47: =(V47-W47-X47)*12.36% -> 12280.56104 | Z47: =V47-W47-X47+Y47 -> 111637.851 | AA47: 105190 | AB47: 1000 | AC47: 2289.85 | AD47: =(AA47-AB47-AC47)*12.36% -> 12594.85854 | AE47: =AA47-AB47-AC47+AD47 -> 114495.0085
A48: W52A009OG
A49: W52ASR009A | B49: 105330 | C49: 1000 | D49: 2292.92 | E49: =(B49-C49-D49)*12.36% -> 12611.78309 | F49: =B49-C49-D49+E49 -> 114648.8631 | G49: 102440 | H49: 1000 | I49: 2229.41 | J49: =(G49-H49-I49)*12.36% -> 12262.42892 | K49: =G49-H49-I49+J49 -> 111473.0189 | L49: 107790 | M49: 1000 | N49: 2346.99 | O49: =(L49-M49-N49)*12.36% -> 12909.15604 | P49: =L49-M49-N49+O49 -> 117352.166 | Q49: 105730 | R49: 1000 | S49: 0 | T49: =(Q49-R49-S49)*12.36% -> 12944.628 | U49: =Q49-R49-S49+T49 -> 117674.628 | V49: 102590 | W49: 1000 | X49: 2232.71 | Y49: =(V49-W49-X49)*12.36% -> 12280.56104 | Z49: =V49-W49-X49+Y49 -> 111637.851 | AA49: 105190 | AB49: 1000 | AC49: 2289.85 | AD49: =(AA49-AB49-AC49)*12.36% -> 12594.85854 | AE49: =AA49-AB49-AC49+AD49 -> 114495.0085
A50: W55A004A | B50: 108330 | C50: 1000 | D50: 2358.86 | E50: =(B50-C50-D50)*12.36% -> 12974.4329 | F50: =B50-C50-D50+E50 -> 117945.5729 | G50: 105440 | H50: 1000 | I50: 2295.34 | J50: =(G50-H50-I50)*12.36% -> 12625.07998 | K50: =G50-H50-I50+J50 -> 114769.74 | L50: 110790 | M50: 1000 | N50: 2412.92 | O50: =(L50-M50-N50)*12.36% -> 13271.80709 | P50: =L50-M50-N50+O50 -> 120648.8871 | Q50: 108730 | R50: 1000 | S50: 0 | T50: =(Q50-R50-S50)*12.36% -> 13315.428 | U50: =Q50-R50-S50+T50 -> 121045.428 | V50: 105590 | W50: 1000 | X50: 2298.64 | Y50: =(V50-W50-X50)*12.36% -> 12643.2121 | Z50: =V50-W50-X50+Y50 -> 114934.5721 | AA50: 108690 | AB50: 1000 | AC50: 2366.77 | AD50: =(AA50-AB50-AC50)*12.36% -> 13017.95123 | AE50: =AA50-AB50-AC50+AD50 -> 118341.1812
A51: LLDPE
A52: E20AN009A | B52: 105800 | C52: 1000 | D52: 2303.25 | E52: =(B52-C52-D52)*12.36% -> 12668.5983 | F52: =B52-C52-D52+E52 -> 115165.3483 | G52: 104210 | H52: 1000 | I52: 2268.31 | J52: =(G52-H52-I52)*12.36% -> 12476.39288 | K52: =G52-H52-I52+J52 -> 113418.0829 | L52: 109560 | M52: 1000 | N52: 2385.89 | O52: =(L52-M52-N52)*12.36% -> 13123.12 | P52: =L52-M52-N52+O52 -> 119297.23 | Q52: 107500 | R52: 1000 | S52: 0 | T52: =(Q52-R52-S52)*12.36% -> 13163.4 | U52: =Q52-R52-S52+T52 -> 119663.4 | V52: 104360 | W52: 1000 | X52: 2271.61 | Y52: =(V52-W52-X52)*12.36% -> 12494.525 | Z52: =V52-W52-X52+Y52 -> 113582.915 | AA52: 107590 | AB52: 1000 | AC52: 2342.59 | AD52: =(AA52-AB52-AC52)*12.36% -> 12884.97988 | AE52: =AA52-AB52-AC52+AD52 -> 117132.3899
A53: E20AN009OG
A54: E36A060A | B54: 111440 | C54: 1000 | D54: 2427.21 | E54: =(B54-C54-D54)*12.36% -> 13350.38084 | F54: =B54-C54-D54+E54 -> 121363.1708 | G54: 108250 | H54: 1000 | I54: 2357.1 | J54: =(G54-H54-I54)*12.36% -> 12964.76244 | K54: =G54-H54-I54+J54 -> 117857.6624 | L54: 113600 | M54: 1000 | N54: 2474.68 | O54: =(L54-M54-N54)*12.36% -> 13611.48955 | P54: =L54-M54-N54+O54 -> 123736.8096 | Q54: 111540 | R54: 1000 | S54: 0 | T54: =(Q54-R54-S54)*12.36% -> 13662.744 | U54: =Q54-R54-S54+T54 -> 124202.744 | V54: 108400 | W54: 1000 | X54: 2360.4 | Y54: =(V54-W54-X54)*12.36% -> 12982.89456 | Z54: =V54-W54-X54+Y54 -> 118022.4946 | AA54: 111590 | AB54: 1000 | AC54: 2430.5 | AD54: =(AA54-AB54-AC54)*12.36% -> 13368.5142 | AE54: =AA54-AB54-AC54+AD54 -> 121528.0142
A55: E36A060OG
A56: FILM
A57: F20S009A | B57: 107300 | C57: 1000 | D57: 2336.22 | E57: =(B57-C57-D57)*12.36% -> 12849.92321 | F57: =B57-C57-D57+E57 -> 116813.7032 | G57: 105710 | H57: 1000 | I57: 2301.28 | J57: =(G57-H57-I57)*12.36% -> 12657.71779 | K57: =G57-H57-I57+J57 -> 115066.4378 | L57: 111060 | M57: 1000 | N57: 2418.86 | O57: =(L57-M57-N57)*12.36% -> 13304.4449 | P57: =L57-M57-N57+O57 -> 120945.5849 | Q57: 109000 | R57: 1000 | S57: 0 | T57: =(Q57-R57-S57)*12.36% -> 13348.8 | U57: =Q57-R57-S57+T57 -> 121348.8 | V57: 105860 | W57: 1000 | X57: 2304.57 | Y57: =(V57-W57-X57)*12.36% -> 12675.85115 | Z57: =V57-W57-X57+Y57 -> 115231.2811 | AA57: 109090 | AB57: 1000 | AC57: 2375.56 | AD57: =(AA57-AB57-AC57)*12.36% -> 13066.30478 | AE57: =AA57-AB57-AC57+AD57 -> 118780.7448
A58: F20S009OG
A59: D22S010A | B59: 106300 | C59: 1000 | D59: 2314.24 | E59: =(B59-C59-D59)*12.36% -> 12729.03994 | F59: =B59-C59-D59+E59 -> 115714.7999 | G59: 104710 | H59: 1000 | I59: 2279.3 | J59: =(G59-H59-I59)*12.36% -> 12536.83452 | K59: =G59-H59-I59+J59 -> 113967.5345 | L59: 110060 | M59: 1000 | N59: 2396.88 | O59: =(L59-M59-N59)*12.36% -> 13183.56163 | P59: =L59-M59-N59+O59 -> 119846.6816 | Q59: 108000 | R59: 1000 | S59: 0 | T59: =(Q59-R59-S59)*12.36% -> 13225.2 | U59: =Q59-R59-S59+T59 -> 120225.2 | V59: 104860 | W59: 1000 | X59: 2282.6 | Y59: =U59-V59-W59+X59 -> 16647.8 | Z59: =V59-W59-X59+Y59 -> 118225.2 | AA59: 108090 | AB59: 1000 | AC59: 2353.58 | AD59: =(AA59-AB59-AC59)*12.36% -> 12945.42151 | AE59: =AA59-AB59-AC59+AD59 -> 117681.8415
A60: ROTO
A61: R35A042A | B61: 109220 | C61: 1000 | D61: 2378.42 | E61: =(B61-C61-D61)*12.36% -> 13082.01929 | F61: =B61-C61-D61+E61 -> 118923.5993 | G61: 105200 | H61: 1000 | I61: 2290.07 | J61: =(G61-H61-I61)*12.36% -> 12596.06735 | K61: =G61-H61-I61+J61 -> 114505.9973 | L61: 110570 | M61: 1000 | N61: 2408.09 | O61: =(L61-M61-N61)*12.36% -> 13245.21208 | P61: =L61-M61-N61+O61 -> 120407.1221 | Q61: 108520 | R61: 1000 | S61: 0 | T61: =(Q61-R61-S61)*12.36% -> 13289.472 | U61: =Q61-R61-S61+T61 -> 120809.472 | V61: 105870 | W61: 1000 | X61: 2304.79 | Y61: =(V61-W61-X61)*12.36% -> 12677.05996 | Z61: =V61-W61-X61+Y61 -> 115242.27 | AA61: 108710 | AB61: 1000 | AC61: 2367.21 | AD61: =(AA61-AB61-AC61)*12.36% -> 13020.36884 | AE61: =AA61-AB61-AC61+AD61 -> 118363.1588
A62: R35U042A | B62: 110500 | C62: 1000 | D62: 2406.55 | E62: =(B62-C62-D62)*12.36% -> 13236.75042 | F62: =B62-C62-D62+E62 -> 120330.2004 | G62: 106060 | H62: 1000 | I62: 2308.97 | J62: =(G62-H62-I62)*12.36% -> 12700.02731 | K62: =G62-H62-I62+J62 -> 115451.0573 | L62: 111430 | M62: 1000 | N62: 2426.99 | O62: =(L62-M62-N62)*12.36% -> 13349.17204 | P62: =L62-M62-N62+O62 -> 121352.182 | Q62: 109780 | R62: 1000 | S62: 0 | T62: =(Q62-R62-S62)*12.36% -> 13445.208 | U62: =Q62-R62-S62+T62 -> 122225.208 | V62: 106750 | W62: 1000 | X62: 2324.13 | Y62: =(V62-W62-X62)*12.36% -> 12783.43753 | Z62: =V62-W62-X62+Y62 -> 116209.3075 | AA62: 109570 | AB62: 1000 | AC62: 2386.11 | AD62: =(AA62-AB62-AC62)*12.36% -> 13124.3288 | AE62: =AA62-AB62-AC62+AD62 -> 119308.2188
A64: NOTE : | B64: THE PRICES OF OLD PLANT & NEW PLANT ARE SAME FROM DIRECT SALE

Sheet Sheet4
A1: UNITED BROTHERS
A2: CONSIGNMENT STOCKIST OF GAIL (INDIA) LTD
A3: 301,HERITAGE PLAZA, R.S.MAHARAJ MARG,( TELI GALLI CROSS LANE), ANDHERI (E), MUMBAI - 400 069
A4: TEL: 26844612(4 LINES) FAX: 26822914 E-MAIL: info@unibrothers.com ,prashant@unibrothers.com ,jyoti@unibrothers.com
A5: EX-WORKS PRICE OF HDPE "G-LEX / G-LENE " W.E.F. 20TH MARCH 2014
A6: CASH / ADVANCE PAYMENT FOR MAHARASHTRA & DAMAN
B7: Freight 985.53 | G7: Freight 3199.90 | N7: FREIGHT 1758.96 | R7: FREIGHT 5424.7 | V7: Freight 2024.85
B8: ALWAR | G8: HYDERABAD | L8: BADDI | Q8: UDMALPET | V8: BHAVNAGAR
B9: BASIC | C9: DISC | D9: LOC | E9: EXCISE | F9: EX-WKS | G9: BASIC | H9: DISC | I9: LOC | J9: EXCISE | K9: EX-WKS | L9: BASIC | M9: DISC | N9: LOC | O9: EXCISE | P9: EX-WKS | Q9: BASIC | R9: DISC | S9: LOC | T9: EXCISE | U9: EX-WKS | W9: DISC | X9: LOC | Y9: EXCISE | Z9: EX-WKS
A10: BM
A11: B52A003A | B11: 110470 | C11: 1000 | D11: 2405.89 | E11: =(B11-C11-D11)*12.36% -> 13233.124 | F11: =B11-C11-D11+E11 -> 120297.234 | G11: 106900 | H11: 1000 | I11: 2327.43 | J11: =(G11-H11-I11)*12.36% -> 12801.56965 | K11: =G11-H11-I11+J11 -> 116374.1397 | L11: 110020 | M11: 1000 | N11: 2396 | O11: =(L11-M11-N11)*12.36% -> 13178.7264 | P11: =L11-M11-N11+O11 -> 119802.7264 | Q11: 105210 | R11: 1000 | S11: 2290.29 | T11: =(Q11-R11-S11)*12.36% -> 12597.27616 | U11: =Q11-R11-S11+T11 -> 114516.9862 | V11: 108110 | W11: 1000 | X11: 2354.02 | Y11: =(V11-W11-X11)*12.36% -> 12947.83913 | Z11: =V11-W11-X11+Y11 -> 117703.8191
A12: B63A003A | B12: 110470 | C12: 1000 | D12: 2405.89 | E12: =(B12-C12-D12)*12.36% -> 13233.124 | F12: =B12-C12-D12+E12 -> 120297.234 | G12: 106900 | H12: 1000 | I12: 2327.43 | J12: =(G12-H12-I12)*12.36% -> 12801.56965 | K12: =G12-H12-I12+J12 -> 116374.1397 | L12: 110020 | M12: 1000 | N12: 2396 | O12: =(L12-M12-N12)*12.36% -> 13178.7264 | P12: =L12-M12-N12+O12 -> 119802.7264 | Q12: 105210 | R12: 1000 | S12: 2290.29 | T12: =(Q12-R12-S12)*12.36% -> 12597.27616 | U12: =Q12-R12-S12+T12 -> 114516.9862 | V12: 108110 | W12: 1000 | X12: 2354.02 | Y12: =(V12-W12-X12)*12.36% -> 12947.83913 | Z12: =V12-W12-X12+Y12 -> 117703.8191
A13: B55HM0003A | B13: 114670 | C13: 1000 | D13: 2498.2 | E13: =(B13-C13-D13)*12.36% -> 13740.83448 | F13: =B13-C13-D13+E13 -> 124912.6345 | G13: 111440 | H13: 1000 | I13: 2427.21 | J13: =(G13-H13-I13)*12.36% -> 13350.38084 | K13: =G13-H13-I13+J13 -> 121363.1708 | L13: 114680 | M13: 1000 | N13: 2498.42 | O13: =(L13-M13-N13)*12.36% -> 13742.04329 | P13: =L13-M13-N13+O13 -> 124923.6233 | Q13: 109360 | R13: 1000 | S13: 2381.49 | T13: =(Q13-R13-S13)*12.36% -> 13098.94384 | U13: =Q13-R13-S13+T13 -> 119077.4538 | V13: 112470 | W13: 1000 | X13: 2449.84 | Y13: =(V13-W13-X13)*12.36% -> 13474.89178 | Z13: =V13-W13-X13+Y13 -> 122495.0518
A14: CABLE-INSUL
A15: C43D006A | B15: 108544 | C15: 1000 | D15: 2363.55 | E15: =(B15-C15-D15)*12.36% -> 13000.30362 | F15: =B15-C15-D15+E15 -> 118180.7536 | G15: 105437 | H15: 1000 | I15: 2295.28 | J15: =(G15-H15-I15)*12.36% -> 12624.71659 | K15: =G15-H15-I15+J15 -> 114766.4366 | L15: 108591 | M15: 1000 | N15: 2364.59 | O15: =(L15-M15-N15)*12.36% -> 13005.98428 | P15: =L15-M15-N15+O15 -> 118232.3943 | Q15: 103271 | R15: 1000 | S15: 2247.67 | T15: =(Q15-R15-S15)*12.36% -> 12362.88359 | U15: =Q15-R15-S15+T15 -> 112386.2136 | V15: 105735 | W15: 1000 | X15: 2301.83 | Y15: =(V15-W15-X15)*12.36% -> 12660.73981 | Z15: =V15-W15-X15+Y15 -> 115093.9098
A17: SHETG
A18: E45A003A | B18: 109780 | C18: 1000 | D18: 2390.73 | E18: =(B18-C18-D18)*12.36% -> 13149.71377 | F18: =B18-C18-D18+E18 -> 119538.9838 | G18: 106510 | H18: 1000 | I18: 2318.86 | J18: =(G18-H18-I18)*12.36% -> 12754.4249 | K18: =G18-H18-I18+J18 -> 115945.5649 | L18: 109830 | M18: 1000 | N18: 2391.82 | O18: =(L18-M18-N18)*12.36% -> 13155.75905 | P18: =L18-M18-N18+O18 -> 119593.939 | Q18: 104220 | R18: 1000 | S18: 2268.53 | T18: =(Q18-R18-S18)*12.36% -> 12477.60169 | U18: =Q18-R18-S18+T18 -> 113429.0717 | V18: 107000 | W18: 1000 | X18: 2329.63 | Y18: =(V18-W18-X18)*12.36% -> 12813.65773 | Z18: =V18-W18-X18+Y18 -> 116484.0277
A19: E45A003OG
A20: EXTR
A21: E52A003A | B21: 111450 | C21: 1000 | D21: 2427.43 | E21: =(B21-C21-D21)*12.36% -> 13351.58965 | F21: =B21-C21-D21+E21 -> 121374.1597 | G21: 108180 | H21: 1000 | I21: 2355.56 | J21: =(G21-H21-I21)*12.36% -> 12956.30078 | K21: =G21-H21-I21+J21 -> 117780.7408 | L21: 111500 | M21: 1000 | N21: 2428.53 | O21: =(L21-M21-N21)*12.36% -> 13357.63369 | P21: =L21-M21-N21+O21 -> 121429.1037 | Q21: 105890 | R21: 1000 | S21: 2305.23 | T21: =(Q21-R21-S21)*12.36% -> 12679.47757 | U21: =Q21-R21-S21+T21 -> 115264.2476 | V21: 109100 | W21: 1000 | X21: 2375.78 | Y21: =(V21-W21-X21)*12.36% -> 13067.51359 | Z21: =V21-W21-X21+Y21 -> 118791.7336
A22: E52A003OG
A23: E52U003A | B23: 115230 | C23: 1000 | D23: 2455.56 | E23: =(B23-C23-D23)*12.36% -> 13815.32078 | F23: =B23-C23-D23+E23 -> 125589.7608 | G23: 111960 | H23: 1000 | I23: 2383.69 | J23: =(G23-H23-I23)*12.36% -> 13420.03192 | K23: =G23-H23-I23+J23 -> 121996.3419 | L23: 115280 | M23: 1000 | N23: 2456.66 | O23: =(L23-M23-N23)*12.36% -> 13821.36482 | P23: =L23-M23-N23+O23 -> 125644.7048 | Q23: 109670 | R23: 1000 | S23: 2333.36 | T23: =(Q23-R23-S23)*12.36% -> 13143.2087 | U23: =Q23-R23-S23+T23 -> 119479.8487 | V23: 112880 | W23: 1000 | X23: 2403.91 | Y23: =(V23-W23-X23)*12.36% -> 13531.24472 | Z23: =V23-W23-X23+Y23 -> 123007.3347
A24: E52U003OG
A25: HM FILM
A26: F55HM0003A | B26: 110720 | C26: 1000 | D26: 2411.38 | E26: =(B26-C26-D26)*12.36% -> 13263.34543 | F26: =B26-C26-D26+E26 -> 120571.9654 | G26: 105740 | H26: 1000 | I26: 2301.94 | J26: =(G26-H26-I26)*12.36% -> 12661.34422 | K26: =G26-H26-I26+J26 -> 115099.4042 | L26: 109980 | M26: 1000 | N26: 2395.12 | O26: =(L26-M26-N26)*12.36% -> 13173.89117 | P26: =L26-M26-N26+O26 -> 119758.7712 | Q26: 105410 | R26: 1000 | S26: 2294.68 | T26: =(Q26-R26-S26)*12.36% -> 12621.45355 | U26: =Q26-R26-S26+T26 -> 114736.7736 | V26: 108020 | W26: 1000 | X26: 2352.04 | Y26: =(V26-W26-X26)*12.36% -> 12936.95986 | Z26: =V26-W26-X26+Y26 -> 117604.9199
A27: F55HM0003OG
A28: IM HIGH
A29: I50A180A | B29: 106950 | C29: 1000 | D29: 2328.53 | E29: =(B29-C29-D29)*12.36% -> 12807.61369 | F29: =B29-C29-D29+E29 -> 116429.0837 | G29: 103930 | H29: 1000 | I29: 2262.16 | J29: =(G29-H29-I29)*12.36% -> 12442.54502 | K29: =G29-H29-I29+J29 -> 113110.385 | L29: 106520 | M29: 1000 | N29: 2319.08 | O29: =(L29-M29-N29)*12.36% -> 12755.63371 | P29: =L29-M29-N29+O29 -> 115956.5537 | Q29: 101920 | R29: 1000 | S29: 2217.98 | T29: =(Q29-R29-S29)*12.36% -> 12199.56967 | U29: =Q29-R29-S29+T29 -> 110901.5897 | V29: 104350 | W29: 1000 | X29: 2271.39 | Y29: =(V29-W29-X29)*12.36% -> 12493.3162 | Z29: =V29-W29-X29+Y29 -> 113571.9262
A30: I50A180OG
A31: IM LOW
A32: I60A080A | B32: 108420 | C32: 1000 | D32: 2360.84 | E32: =(B32-C32-D32)*12.36% -> 12985.31218 | F32: =B32-C32-D32+E32 -> 118044.4722 | G32: 105150 | H32: 1000 | I32: 2288.97 | J32: =(G32-H32-I32)*12.36% -> 12590.02331 | K32: =G32-H32-I32+J32 -> 114451.0533 | L32: 108480 | M32: 1000 | N32: 2362.15 | O32: =(L32-M32-N32)*12.36% -> 12992.56626 | P32: =L32-M32-N32+O32 -> 118110.4163 | Q32: 102870 | R32: 1000 | S32: 2238.86 | T32: =(Q32-R32-S32)*12.36% -> 12314.4089 | U32: =Q32-R32-S32+T32 -> 111945.5489 | V32: 105600 | W32: 1000 | X32: 2298.86 | Y32: =(V32-W32-X32)*12.36% -> 12644.4209 | Z32: =V32-W32-X32+Y32 -> 114945.5609
A33: I60A080OG
A34: IM-L-UV
A35: I60U080A | B35: 109960 | C35: 1000 | D35: 2394.68 | E35: =(B35-C35-D35)*12.36% -> 13171.47355 | F35: =B35-C35-D35+E35 -> 119736.7936 | G35: 106690 | H35: 1000 | I35: 2322.81 | J35: =(G35-H35-I35)*12.36% -> 12776.18468 | K35: =G35-H35-I35+J35 -> 116143.3747 | L35: 110010 | M35: 1000 | N35: 2395.78 | O35: =(L35-M35-N35)*12.36% -> 13177.51759 | P35: =L35-M35-N35+O35 -> 119791.7376 | Q35: 104410 | R35: 1000 | S35: 2272.71 | T35: =(Q35-R35-S35)*12.36% -> 12500.56904 | U35: =Q35-R35-S35+T35 -> 113637.859 | V35: 107100 | W35: 1000 | X35: 2331.83 | Y35: =(V35-W35-X35)*12.36% -> 12825.74581 | Z35: =V35-W35-X35+Y35 -> 116593.9158
A36: I60U080OG
A37: PIPE (PE80)
A38: P54A001A | B38: 117430 | C38: 1000 | D38: 2503.91 | E38: =(B38-C38-D38)*12.36% -> 14081.26472 | F38: =B38-C38-D38+E38 -> 128007.3547 | G38: 114200 | H38: 1000 | I38: 2432.92 | J38: =(G38-H38-I38)*12.36% -> 13690.81109 | K38: =G38-H38-I38+J38 -> 124457.8911 | L38: 117440 | M38: 1000 | N38: 2504.13 | O38: =(L38-M38-N38)*12.36% -> 14082.47353 | P38: =L38-M38-N38+O38 -> 128018.3435 | Q38: 112120 | R38: 1000 | S38: 2387.21 | T38: =(Q38-R38-S38)*12.36% -> 13439.37284 | U38: =Q38-R38-S38+T38 -> 122172.1628 | V38: 115230 | W38: 1000 | X38: 2455.56 | Y38: =(V38-W38-X38)*12.36% -> 13815.32078 | Z38: =V38-W38-X38+Y38 -> 125589.7608
A39: PIPE (PE100)
A40: P52A003A | B40: 119430 | C40: 1000 | D40: 2547.87 | E40: =(B40-C40-D40)*12.36% -> 14323.03127 | F40: =B40-C40-D40+E40 -> 130205.1613 | G40: 116200 | H40: 1000 | I40: 2476.88 | J40: =(G40-H40-I40)*12.36% -> 13932.57763 | K40: =G40-H40-I40+J40 -> 126655.6976 | L40: 119440 | M40: 1000 | N40: 2548.08 | O40: =(L40-M40-N40)*12.36% -> 14324.24131 | P40: =L40-M40-N40+O40 -> 130216.1613 | Q40: 114120 | R40: 1000 | S40: 2431.16 | T40: =(Q40-R40-S40)*12.36% -> 13681.14062 | U40: =Q40-R40-S40+T40 -> 124369.9806 | V40: 117230 | W40: 1000 | X40: 2499.51 | Y40: =(V40-W40-X40)*12.36% -> 14057.08856 | Z40: =V40-W40-X40+Y40 -> 127787.5786
A41: RAFFIA
A42: W50A009A | B42: 111050 | C42: 1000 | D42: 2330.73 | E42: =(B42-C42-D42)*12.36% -> 13314.10177 | F42: =B42-C42-D42+E42 -> 121033.3718 | G42: 108280 | H42: 1000 | I42: 2269.85 | J42: =(G42-H42-I42)*12.36% -> 12979.25454 | K42: =G42-H42-I42+J42 -> 117989.4045 | L42: 111600 | M42: 1000 | N42: 2342.81 | O42: =(L42-M42-N42)*12.36% -> 13380.58868 | P42: =L42-M42-N42+O42 -> 121637.7787 | Q42: 105500 | R42: 1000 | S42: 2208.75 | T42: =(Q42-R42-S42)*12.36% -> 12643.1985 | U42: =Q42-R42-S42+T42 -> 114934.4485 | V42: 108600 | W42: 1000 | X42: 2276.88 | Y42: =(V42-W42-X42)*12.36% -> 13017.93763 | Z42: =V42-W42-X42+Y42 -> 118341.0576
A43: T50A010A | B43: 111550 | C43: 1000 | D43: 2341.71 | E43: =(B43-C43-D43)*12.36% -> 13374.54464 | F43: =B43-C43-D43+E43 -> 121582.8346 | G43: 108280 | H43: 1000 | I43: 2269.85 | J43: =(G43-H43-I43)*12.36% -> 12979.25454 | K43: =G43-H43-I43+J43 -> 117989.4045 | L43: 111600 | M43: 1000 | N43: 2342.81 | O43: =(L43-M43-N43)*12.36% -> 13380.58868 | P43: =L43-M43-N43+O43 -> 121637.7787 | Q43: 106000 | R43: 1000 | S43: 2219.74 | T43: =(Q43-R43-S43)*12.36% -> 12703.64014 | U43: =Q43-R43-S43+T43 -> 115483.9001 | V43: 108600 | W43: 1000 | X43: 2276.88 | Y43: =(V43-W43-X43)*12.36% -> 13017.93763 | Z43: =V43-W43-X43+Y43 -> 118341.0576
A44: MF
A45: W52A009A | B45: 108050 | C45: 1000 | D45: 2352.7 | E45: =(B45-C45-D45)*12.36% -> 12940.58628 | F45: =B45-C45-D45+E45 -> 117637.8863 | G45: 104780 | H45: 1000 | I45: 2280.84 | J45: =(G45-H45-I45)*12.36% -> 12545.29618 | K45: =G45-H45-I45+J45 -> 114044.4562 | L45: 108100 | M45: 1000 | N45: 2353.8 | O45: =(L45-M45-N45)*12.36% -> 12946.63032 | P45: =L45-M45-N45+O45 -> 117692.8303 | Q45: 102500 | R45: 1000 | S45: 2230.73 | T45: =(Q45-R45-S45)*12.36% -> 12269.68177 | U45: =Q45-R45-S45+T45 -> 111538.9518 | V45: 105100 | W45: 1000 | X45: 2287.87 | Y45: =(V45-W45-X45)*12.36% -> 12583.97927 | Z45: =V45-W45-X45+Y45 -> 114396.1093
A46: W52A009OG
A47: W52ASR009A | B47: 108050 | C47: 1000 | D47: 2352.7 | E47: =(B47-C47-D47)*12.36% -> 12940.58628 | F47: =B47-C47-D47+E47 -> 117637.8863 | G47: 104780 | H47: 1000 | I47: 2280.84 | J47: =(G47-H47-I47)*12.36% -> 12545.29618 | K47: =G47-H47-I47+J47 -> 114044.4562 | L47: 108100 | M47: 1000 | N47: 2353.8 | O47: =(L47-M47-N47)*12.36% -> 12946.63032 | P47: =L47-M47-N47+O47 -> 117692.8303 | Q47: 102500 | R47: 1000 | S47: 2230.73 | T47: =(Q47-R47-S47)*12.36% -> 12269.68177 | U47: =Q47-R47-S47+T47 -> 111538.9518 | V47: 105100 | W47: 1000 | X47: 2287.87 | Y47: =(V47-W47-X47)*12.36% -> 12583.97927 | Z47: =V47-W47-X47+Y47 -> 114396.1093
A48: W55A004A | B48: 111050 | C48: 1000 | D48: 2418.64 | E48: =(B48-C48-D48)*12.36% -> 13303.2361 | F48: =B48-C48-D48+E48 -> 120934.5961 | G48: 107780 | H48: 1000 | I48: 2346.77 | J48: =(G48-H48-I48)*12.36% -> 12907.94723 | K48: =G48-H48-I48+J48 -> 117341.1772 | L48: 111100 | M48: 1000 | N48: 2419.71 | O48: =(L48-M48-N48)*12.36% -> 13309.28384 | P48: =L48-M48-N48+O48 -> 120989.5738 | Q48: 105500 | R48: 1000 | S48: 2296.66 | T48: =(Q48-R48-S48)*12.36% -> 12632.33282 | U48: =Q48-R48-S48+T48 -> 114835.6728 | V48: 108600 | W48: 1000 | X48: 2364.79 | Y48: =(V48-W48-X48)*12.36% -> 13007.07196 | Z48: =V48-W48-X48+Y48 -> 118242.282
A49: LLDPE
A50: E20AN009A | B50: 109810 | C50: 1000 | D50: 2391.38 | E50: =(B50-C50-D50)*12.36% -> 13153.34143 | F50: =B50-C50-D50+E50 -> 119571.9614 | G50: 106540 | H50: 1000 | I50: 2319.52 | J50: =(G50-H50-I50)*12.36% -> 12758.05133 | K50: =G50-H50-I50+J50 -> 115978.5313 | L50: 109860 | M50: 1000 | N50: 2392.48 | O50: =(L50-M50-N50)*12.36% -> 13159.38547 | P50: =L50-M50-N50+O50 -> 119626.9055 | Q50: 104260 | R50: 1000 | S50: 2269.41 | T50: =(Q50-R50-S50)*12.36% -> 12482.43692 | U50: =Q50-R50-S50+T50 -> 113473.0269 | V50: 107500 | W50: 1000 | X50: 2340.62 | Y50: =(V50-W50-X50)*12.36% -> 12874.09937 | Z50: =V50-W50-X50+Y50 -> 117033.4794
A51: E20AN009OG
A52: E36A060A | B52: 113850 | C52: 1000 | D52: 2480.17 | E52: =(B52-C52-D52)*12.36% -> 13641.71099 | F52: =B52-C52-D52+E52 -> 124011.541 | G52: 110580 | H52: 1000 | I52: 2408.31 | J52: =(G52-H52-I52)*12.36% -> 13246.42088 | K52: =G52-H52-I52+J52 -> 120418.1109 | L52: 113910 | M52: 1000 | N52: 2481.49 | O52: =(L52-M52-N52)*12.36% -> 13648.96384 | P52: =L52-M52-N52+O52 -> 124077.4738 | Q52: 108300 | R52: 1000 | S52: 2358.2 | T52: =(Q52-R52-S52)*12.36% -> 12970.80648 | U52: =Q52-R52-S52+T52 -> 117912.6065 | V52: 111500 | W52: 1000 | X52: 2428.53 | Y52: =(V52-W52-X52)*12.36% -> 13357.63369 | Z52: =V52-W52-X52+Y52 -> 121429.1037
A53: E36A060OG
A54: FILM
A55: F20S009A | B55: 111310 | C55: 1000 | D55: 2424.35 | E55: =(B55-C55-D55)*12.36% -> 13334.66634 | F55: =B55-C55-D55+E55 -> 121220.3163 | G55: 108040 | H55: 1000 | I55: 2352.48 | J55: =(G55-H55-I55)*12.36% -> 12939.37747 | K55: =G55-H55-I55+J55 -> 117626.8975 | L55: 111360 | M55: 1000 | N55: 2425.45 | O55: =(L55-M55-N55)*12.36% -> 13340.71038 | P55: =L55-M55-N55+O55 -> 121275.2604 | Q55: 105760 | R55: 1000 | S55: 2302.38 | T55: =(Q55-R55-S55)*12.36% -> 12663.76183 | U55: =Q55-R55-S55+T55 -> 115121.3818 | V55: 109000 | W55: 1000 | X55: 2373.58 | Y55: =(V55-W55-X55)*12.36% -> 13055.42551 | Z55: =V55-W55-X55+Y55 -> 118681.8455
A56: F20S009OG
A57: D22S010A | B57: 110310 | C57: 1000 | D57: 2402.37 | E57: =(B57-C57-D57)*12.36% -> 13213.78307 | F57: =B57-C57-D57+E57 -> 120121.4131 | G57: 107040 | H57: 1000 | I57: 2330.51 | J57: =(G57-H57-I57)*12.36% -> 12818.49296 | K57: =G57-H57-I57+J57 -> 116527.983 | L57: 110360 | M57: 1000 | N57: 2403.47 | O57: =(L57-M57-N57)*12.36% -> 13219.82711 | P57: =L57-M57-N57+O57 -> 120176.3571 | Q57: 104760 | R57: 1000 | S57: 2280.4 | T57: =(Q57-R57-S57)*12.36% -> 12542.87856 | U57: =Q57-R57-S57+T57 -> 114022.4786 | V57: 108000 | W57: 1000 | X57: 2351.6 | Y57: =(V57-W57-X57)*12.36% -> 12934.54224 | Z57: =V57-W57-X57+Y57 -> 117582.9422
A58: ROTO
A59: R35A042A | B59: 110820 | C59: 1000 | D59: 2413.58 | E59: =(B59-C59-D59)*12.36% -> 13275.43351 | F59: =B59-C59-D59+E59 -> 120681.8535 | G59: 107590 | H59: 1000 | I59: 2342.59 | J59: =(G59-H59-I59)*12.36% -> 12884.97988 | K59: =G59-H59-I59+J59 -> 117132.3899 | L59: 110830 | M59: 1000 | N59: 2413.8 | O59: =(L59-M59-N59)*12.36% -> 13276.64232 | P59: =L59-M59-N59+O59 -> 120692.8423 | Q59: 105360 | R59: 1000 | S59: 2293.58 | T59: =(Q59-R59-S59)*12.36% -> 12615.40951 | U59: =Q59-R59-S59+T59 -> 114681.8295 | V59: 108620 | W59: 1000 | X59: 2365.23 | Y59: =(V59-W59-X59)*12.36% -> 13009.48957 | Z59: =V59-W59-X59+Y59 -> 118264.2596
A60: R35U042A | B60: 111680 | C60: 1000 | D60: 2432.48 | E60: =(B60-C60-D60)*12.36% -> 13379.39347 | F60: =B60-C60-D60+E60 -> 121626.9135 | G60: 108450 | H60: 1000 | I60: 2361.49 | J60: =(G60-H60-I60)*12.36% -> 12988.93984 | K60: =G60-H60-I60+J60 -> 118077.4498 | L60: 111690 | M60: 1000 | N60: 2432.7 | O60: =(L60-M60-N60)*12.36% -> 13380.60228 | P60: =L60-M60-N60+O60 -> 121637.9023 | Q60: 106220 | R60: 1000 | S60: 2312.48 | T60: =(Q60-R60-S60)*12.36% -> 12719.36947 | U60: =Q60-R60-S60+T60 -> 115626.8895 | V60: 109480 | W60: 1000 | X60: 2384.13 | Y60: =(V60-W60-X60)*12.36% -> 13113.44953 | Z60: =V60-W60-X60+Y60 -> 119209.3195
A62: NOTE : | B62: THE PRICES OF OLD PLANT & NEW PLANT ARE SAME FROM DIRECT SALE

Sheet STOCK POINT PRICE
A2: UNITED BROTHERS
A3: CONSIGNMENT STOCKIST OF GAIL (INDIA) LTD
A4: 301,HERITAGE PLAZA, R.S.MAHARAJ MARG,( TELI GALLI CROSS LANE), ANDHERI (E), MUMBAI - 400 069
A5: TEL: 26844612(4 LINES) FAX: 26822914 E-MAIL:info@unibrothers.com,prashant@unibrothers.com,jyoti@unibrothers.com
A6: PRICE OF HDPE "G-LEX / G-LENE " W.E.F 20TH MARCH 2014
C8: DAMAN | D8: BHIWANDI | E8: PUNE
C9: ST.PT. | D9: ST.PT. | E9: ST.PT. | G9: FREIGHT
B10: BM | G10: ALWAR | H10: 985.53
B11: B52A003A | C11: 122420 | D11: 122250 | E11: 122370 | G11: BHAVNAGAR | H11: 2024.85
B12: B52A003NA | C12: 121850 | D12: 121680 | E12: 122370 | G12: BADDI | H12: 1758.96
B13: B63A003A | C13: 122420 | D13: 122250 | E13: 122370 | G13: DAMAN | H13: 2048.77
B14: B63A003NA | C14: 121850 | D14: 121680 | E14: 122370 | G14: SILVASSA | H14: 2061.17
B15: B55HM0003A | C15: 126860 | D15: 126760 | E15: 126890 | G15: BHIWANDI | H15: 2537.23
B16: B55HM0003NA | C16: 126290 | D16: 126190 | E16: 126890 | G16: JALGAON | H16: 1959.23
B17: B53EA0035A | C17: 122980 | D17: 122810 | E17: 122930 | G17: NAGPUR | H17: 1624.98
B18: SHETG | G18: SANGLI | H18: 3069.18
B19: E45A003A | C19: 121350 | D19: 121160 | E19: 121340 | G19: UMBERGAON | H19: 2016.35
G20: PUNE | H20: 2640.33
B21: EXTR | G21: WAI | H21: 2825.33
B22: E52A003A | C22: 123230 | D22: 123040 | E22: 123220 | G22: HYDERABAD | H22: 3199.9
B23: E52A003NA | C23: 122660 | D23: 122470 | E23: 123220 | G23: NASIK | H23: 2282.96
B24: E52U003A | C24: 124670 | D24: 124470 | E24: 124660 | G24: AHMEDNAGAR | H24: 2446.93
B25: E52U003NA | C25: 124100 | D25: 123900 | E25: 124660 | G25: ROHA | H25: 2814.81
B26: HM FILM | G26: AURANGABAD | H26: 2247.23
B27: F55HM0003A | C27: 122980 | D27: 123440 | E27: 123580 | G27: TARAPUR | H27: 2610.9
B28: F55HM0003NA | C28: 122410 | D28: 122870 | E28: 123580 | G28: THANE | H28: 2581.47
B29: IM HIGH | G29: SOLAPUR | H29: 2833.73
B30: I50A180A | C30: 118280 | D30: 118250 | E30: 118390 | G30: BAROJRA | H30: 2507.05
G31: HOSUR | H31: 4749.82
B32: IM LOW | G32: JAMMU | H32: 2573.77
B33: I60A080A | C33: 119820 | D33: 119640 | E33: 119830 | G33: NOIDA | H33: 1210.75
G34: PONDICHERRY | H34: 5162.96
B35: IM-L-UV | G35: UDMALPET | H35: 5424.7
B36: I60U080A | C36: 121550 | D36: 121360 | E36: 121550 | G36: KOLHAPUR | H36: 3163.78
G37: BARODA
B38: PIPE (PE80)
B39: P54A001A | C39: 127150 | D39: 127050 | E39: 127190
B40: P54A001NA | C40: 126580 | D40: 126480 | E40: 127190
B41: PIPE (PE100)
B42: P52A003A | C42: 129400 | D42: 129290 | E42: 129430
B43: P52A003NA | C43: 128830 | D43: 128720 | E43: 129430
B44: RAFFIA
B45: W50A009A | C45: 118850 | D45: 118650 | E45: 118840 | G45: QUANTITY DISCOUNT
B46: T50A010A | C46: 118850 | D46: 118650 | E46: 118840
B47: MF | G47: QTY MTS | H47: AMT
B48: W55A004A | C48: 122780 | D48: 122590 | E48: 122770 | G48: >=10 | H48: 300
B49: W55A004NA | C49: 122210 | D49: 122020 | E49: 122770 | G49: >=30 | H49: 400
B50: W52A009A | C50: 119410 | D50: 119220 | E50: 119400 | G50: >=50 | H50: 500
B51: W52A009NA | C51: 118840 | D51: 118650 | E51: 119400 | G51: >=100 | H51: 600
B52: W52ASR009A | C52: 119410 | D52: 119220 | E52: 119400 | G52: >=200 | H52: 700
B53: W52ASR009NA | C53: 118840 | D53: 118650 | E53: 119400 | G53: >=300 | H53: 750
B54: LLDPE | G54: >=400 | H54: 800
G55: >=600 | H55: 900
B56: E36A060A | C56: 125930 | D56: 125740 | E56: 125930
B58: FILM
B59: F20S009A | C59: 123070 | D59: 122890 | E59: 123060
B60: F20S009OG
B61: D22S010A | C61: 121950 | D61: 121770 | E61: 121940
B62: E20AN009A | C62: 121390 | D62: 121200 | E62: 121380
B63: ROTO
B64: R35A042A | C64: 122530 | D64: 122430 | E64: 122570
B65: R35U042A | C65: 123500 | D65: 123400 | E65: 123530
B67: * Ex Works Cash Discount (Rs.1000/-)
B68: 1. Freight & Transportation will be extra and at buyers account, on Ex-Works sale
B69: 2. The price of B Grade will be Rs.500/- PMT less than Prime Grade for Ex.Works sale and Rs.580/- P.M.T. less for Stock Point Sales.
B70: 3. The price of Old Plant & New Plant are same from Direct Sale
B71: 4. The price of Standardised Grade will be Rs.500/-PMT less than Prime Grade for Ex.Wks.sale and Rs.580/-P.M.T.less for St.Pt. Sales.
B72: 5. 14 days interest free credit is applicable in lieu of this credit a Cash Discount of Rs.800/- PMT is offered in the
B73: basic price in case of Cash Payment in Ex-Works Sale.
B74: 6. Stock point Price is net price
B75: 7. Cash/quantity Discount is not applicable for OG & PS Grade.
B76: 8. CST & Transportation will be charged extra & at buyers account on Exworks sale
B77: 9. CST / Vat & Transporation will be charged extra & at buyers account on Stock Point sale
B78: 10. The prices are subject to change without any prior notice those prevailing at the time of delivery will be applicable.
B79: 11. C-Form is mandatory for all Ex-works Sales w.e.f.1st April'2002.
B80: 12. Gas Authority Of India Ltd. changed to GAIL (India) Ltd. w.e.f. 1st January 2003.
B81: 13. CST @ 2% WILL BE APPLICABLE
B82: 14. Payment will be accepted through RTGS only.
B84: JYOTI | C84: 9930945123
B85: ASHISH | C85: 9029914092
